Workbook

Sheet 全県
A1: 第5表 地域振興局別・人工林天然林別・資源構成表
A3: 県計(天然林) | O3: 単位 面積 : ha、蓄積 成長量 : ㎥
B4: 樹種 | C4: 針 葉 樹 | J4: 広 葉 樹 | O4: 計
C5: ス ギ | D5: ヒ ノ キ | E5: サ ワ ラ | F5: ア カ マ ツ | G5: カ ラ マ ツ | H5: そ の 他 針 | I5: 小 計 | J5: ク ヌ ギ | K5: ブ ナ | L5: ナ ラ | M5: そ の 他 広 | N5: 小 計
A6: 齢級
A7: 1 | B7: 面積 | C7: 0.08 | D7: 0 | E7: 0 | F7: 0.11 | G7: 0.39 | H7: 0 | I7: 0.58 | J7: 0 | K7: 0 | L7: 4.15 | M7: 168.32 | N7: 172.47 | O7: 173.05
B8: 蓄積 | C8: 0 | D8: 0 | E8: 0 | F8: 0 | G8: 0 | H8: 0 | I8: 0 | J8: 0 | K8: 0 | L8: 0 | M8: 0 | N8: 0 | O8: 0
B9: 成長 | C9: 0 | D9: 0 | E9: 0 | F9: 0 | G9: 0 | H9: 0 | I9: 0 | J9: 0 | K9: 0 | L9: 0 | M9: 0 | N9: 0 | O9: 0
A10: 2 | B10: 面積 | C10: 1.89 | D10: 0.05 | E10: 0 | F10: 1.9 | G10: 0.79 | H10: 1.08 | I10: 5.71 | J10: 0.73 | K10: 0 | L10: 3.7 | M10: 606.66 | N10: 611.09 | O10: 616.8
B11: 蓄積 | C11: 0 | D11: 0 | E11: 0 | F11: 0 | G11: 0 | H11: 0 | I11: 0 | J11: 13 | K11: 0 | L11: 52 | M11: 8094 | N11: 8159 | O11: 8159
B12: 成長 | C12: 0 | D12: 0 | E12: 0 | F12: 0 | G12: 0 | H12: 0 | I12: 0 | J12: 4.1 | K12: 0 | L12: 7.3 | M12: 1146 | N12: 1157.4 | O12: 1157.4
A13: 3 | B13: 面積 | C13: 0 | D13: 4.47 | E13: 0 | F13: 1.49 | G13: 18.47 | H13: 0 | I13: 24.43 | J13: 0 | K13: 0 | L13: 9.6 | M13: 268.63 | N13: 278.23 | O13: 302.66
B14: 蓄積 | C14: 0 | D14: 161 | E14: 0 | F14: 82 | G14: 1288 | H14: 0 | I14: 1531 | J14: 0 | K14: 0 | L14: 217 | M14: 5931 | N14: 6148 | O14: 7679
B15: 成長 | C15: 0 | D15: 31.7 | E15: 0 | F15: 10.9 | G15: 120.2 | H15: 0 | I15: 162.8 | J15: 0 | K15: 0 | L15: 18.3 | M15: 520.8 | N15: 539.1 | O15: 701.9
A16: 4 | B16: 面積 | C16: 0.08 | D16: 1.88 | E16: 0 | F16: 6.86 | G16: 0.85 | H16: 0.24 | I16: 9.91 | J16: 1.5 | K16: 0 | L16: 12.06 | M16: 477.52 | N16: 491.08 | O16: 500.99
B17: 蓄積 | C17: 8 | D17: 140 | E17: 0 | F17: 576 | G17: 73 | H17: 6 | I17: 803 | J17: 70 | K17: 0 | L17: 361 | M17: 14234 | N17: 14665 | O17: 15468
B18: 成長 | C18: 0.6 | D18: 13.1 | E18: 0 | F18: 47.5 | G18: 4.4 | H18: 0.4 | I18: 66 | J18: 3.6 | K18: 0 | L18: 24.3 | M18: 958.4 | N18: 986.3 | O18: 1052.3
A19: 5 | B19: 面積 | C19: 0.25 | D19: 10.28 | E19: 0 | F19: 19.75 | G19: 0.42 | H19: 3.39 | I19: 34.09 | J19: 8.44 | K19: 2.6 | L19: 40.23 | M19: 731.69 | N19: 782.96 | O19: 817.05
B20: 蓄積 | C20: 50 | D20: 980 | E20: 0 | F20: 1889 | G20: 61 | H20: 261 | I20: 3241 | J20: 482 | K20: 47 | L20: 1663 | M20: 27750 | N20: 29942 | O20: 33183
B21: 成長 | C21: 3.5 | D21: 58.7 | E21: 0 | F21: 98.2 | G21: 2.9 | H21: 18.1 | I21: 181.4 | J21: 17 | K21: 3.7 | L21: 85.4 | M21: 1450.2 | N21: 1556.3 | O21: 1737.7
A22: 6 | B22: 面積 | C22: 1.61 | D22: 3.78 | E22: 0 | F22: 27.12 | G22: 3.66 | H22: 17.3 | I22: 53.47 | J22: 14.03 | K22: 1.5 | L22: 126.37 | M22: 2048.83 | N22: 2190.73 | O22: 2244.2
B23: 蓄積 | C23: 239 | D23: 488 | E23: 0 | F23: 3483 | G23: 611 | H23: 977 | I23: 5798 | J23: 972 | K23: 48 | L23: 6412 | M23: 96494 | N23: 103926 | O23: 109724
B24: 成長 | C24: 12.5 | D24: 21.2 | E24: 0 | F24: 133.5 | G24: 18.9 | H24: 50.7 | I24: 236.8 | J24: 23.9 | K24: 3.2 | L24: 259.2 | M24: 3866.8 | N24: 4153.1 | O24: 4389.9
A25: 7 | B25: 面積 | C25: 2.61 | D25: 0.87 | E25: 0.21 | F25: 103.5 | G25: 4.28 | H25: 8.04 | I25: 119.51 | J25: 42.72 | K25: 19.6 | L25: 289.59 | M25: 3873.6 | N25: 4225.51 | O25: 4345.02
B26: 蓄積 | C26: 703 | D26: 110 | E26: 36 | F26: 14234 | G26: 592 | H26: 624 | I26: 16299 | J26: 3236 | K26: 626 | L26: 17644 | M26: 218813 | N26: 240319 | O26: 256618
B27: 成長 | C27: 23.9 | D27: 3.7 | E27: 1.2 | F27: 361.3 | G27: 13.3 | H27: 28.8 | I27: 432.2 | J27: 50.2 | K27: 35.6 | L27: 553.7 | M27: 6833.4 | N27: 7472.9 | O27: 7905.1
A28: 8 | B28: 面積 | C28: 0.24 | D28: 6.15 | E28: 0 | F28: 57.84 | G28: 0.32 | H28: 4.43 | I28: 68.98 | J28: 76.94 | K28: 11.97 | L28: 516.34 | M28: 4361.4 | N28: 4966.65 | O28: 5035.63
B29: 蓄積 | C29: 73 | D29: 1109 | E29: 0 | F29: 9809 | G29: 77 | H29: 446 | I29: 11514 | J29: 6015 | K29: 651 | L29: 36089 | M29: 286621 | N29: 329376 | O29: 340890
B30: 成長 | C30: 1.8 | D30: 29.2 | E30: 0 | F30: 203.5 | G30: 1.7 | H30: 16.7 | I30: 252.9 | J30: 60.7 | K30: 27.6 | L30: 1079.7 | M30: 8582.8 | N30: 9750.8 | O30: 10003.7
A31: 9 | B31: 面積 | C31: 1.8 | D31: 3.08 | E31: 0.48 | F31: 106.43 | G31: 9.21 | H31: 17.5 | I31: 138.5 | J31: 77.33 | K31: 28.75 | L31: 529.97 | M31: 4395.57 | N31: 5031.62 | O31: 5170.12
B32: 蓄積 | C32: 507 | D32: 531 | E32: 100 | F32: 19773 | G32: 2067 | H32: 1868 | I32: 24846 | J32: 6484 | K32: 1744 | L32: 42403 | M32: 332645 | N32: 383276 | O32: 408122
B33: 成長 | C33: 10 | D33: 14.1 | E33: 2.1 | F33: 302.1 | G33: 42.6 | H33: 61.4 | I33: 432.3 | J33: 41.4 | K33: 61.9 | L33: 1172.6 | M33: 9105.7 | N33: 10381.6 | O33: 10813.9
A34: 10 | B34: 面積 | C34: 1.38 | D34: 16.29 | E34: 0.58 | F34: 217.29 | G34: 5.39 | H34: 48.33 | I34: 289.26 | J34: 87.57 | K34: 67.81 | L34: 461.24 | M34: 5860.46 | N34: 6477.08 | O34: 6766.34
B35: 蓄積 | C35: 530 | D35: 3606 | E35: 126 | F35: 43052 | G35: 1134 | H35: 5422 | I35: 53870 | J35: 7446 | K35: 3885 | L35: 40955 | M35: 490392 | N35: 542678 | O35: 596548
B36: 成長 | C36: 8.6 | D36: 65.6 | E36: 2.3 | F36: 565.6 | G36: 17.8 | H36: 151.7 | I36: 811.6 | J36: 25.9 | K36: 119.7 | L36: 1020.1 | M36: 12271.5 | N36: 13437.2 | O36: 14248.8
A37: 11 | B37: 面積 | C37: 3.65 | D37: 5.5 | E37: 1.25 | F37: 784.71 | G37: 16.66 | H37: 136.14 | I37: 947.91 | J37: 53.97 | K37: 188.53 | L37: 536.69 | M37: 9588.76 | N37: 10367.95 | O37: 11315.86
B38: 蓄積 | C38: 1519 | D38: 1296 | E38: 304 | F38: 168361 | G38: 3514 | H38: 19892 | I38: 194886 | J38: 4773 | K38: 12095 | L38: 52973 | M38: 839999 | N38: 909840 | O38: 1104726
B39: 成長 | C39: 19.7 | D39: 20.9 | E39: 4.8 | F39: 1865.7 | G39: 48.4 | H39: 464.1 | I39: 2423.6 | J39: 10.7 | K39: 317 | L39: 1042 | M39: 16185.5 | N39: 17555.2 | O39: 19978.8
A40: 12 | B40: 面積 | C40: 3.45 | D40: 2.22 | E40: 1.12 | F40: 2215.31 | G40: 13.88 | H40: 226.46 | I40: 2462.44 | J40: 89.58 | K40: 257.14 | L40: 864.85 | M40: 14372.32 | N40: 15583.89 | O40: 18046.33
B41: 蓄積 | C41: 1483 | D41: 579 | E41: 291 | F41: 499272 | G41: 3940 | H41: 31716 | I41: 537281 | J41: 7908 | K41: 22328 | L41: 88514 | M41: 1393942 | N41: 1512692 | O41: 2049973
B42: 成長 | C42: 16.8 | D42: 8.1 | E42: 4.2 | F42: 4821.6 | G42: 47 | H42: 616.2 | I42: 5513.9 | J42: 16.8 | K42: 512.3 | L42: 1683.9 | M42: 26051 | N42: 28264 | O42: 33777.9
A43: 13 | B43: 面積 | C43: 5.91 | D43: 2.68 | E43: 4.87 | F43: 3896.87 | G43: 377.33 | H43: 544.38 | I43: 4832.04 | J43: 310.57 | K43: 430.65 | L43: 1799.09 | M43: 24953.25 | N43: 27493.56 | O43: 32325.6
B44: 蓄積 | C44: 2646 | D44: 712 | E44: 1284 | F44: 901691 | G44: 82728 | H44: 74991 | I44: 1064052 | J44: 27497 | K44: 34529 | L44: 199336 | M44: 2652739 | N44: 2914101 | O44: 3978153
B45: 成長 | C45: 29.9 | D45: 9.8 | E45: 18.1 | F45: 8340 | G45: 1029.7 | H45: 1403.1 | I45: 10830.6 | J45: 82 | K45: 785.8 | L45: 3030.5 | M45: 40954.9 | N45: 44853.2 | O45: 55683.8
A46: 14 | B46: 面積 | C46: 11.86 | D46: 7.27 | E46: 22.18 | F46: 6320.79 | G46: 73.69 | H46: 443.37 | I46: 6879.16 | J46: 741.32 | K46: 301.72 | L46: 3425.87 | M46: 40269.26 | N46: 44738.17 | O46: 51617.33
B47: 蓄積 | C47: 2911 | D47: 1890 | E47: 6012 | F47: 1500834 | G47: 17082 | H47: 70219 | I47: 1598948 | J47: 66899 | K47: 32232 | L47: 399882 | M47: 4545400 | N47: 5044413 | O47: 6643361
B48: 成長 | C48: 28.1 | D48: 22.8 | E48: 73.8 | F48: 11870.6 | G48: 194.2 | H48: 1179.4 | I48: 13368.9 | J48: 150.1 | K48: 599.8 | L48: 4520.1 | M48: 52185.9 | N48: 57455.9 | O48: 70824.8
A49: 15 以上 | B49: 面積 | C49: 90.15 | D49: 73.34 | E49: 229.32 | F49: 32169.31 | G49: 447.46 | H49: 10839.69 | I49: 43849.27 | J49: 967.79 | K49: 4736.2 | L49: 9208.94 | M49: 135219.67 | N49: 150132.6 | O49: 193981.87
B50: 蓄積 | C50: 37571 | D50: 21545 | E50: 62152 | F50: 8195599 | G50: 105328 | H50: 2435884 | I50: 10858079 | J50: 90612 | K50: 631215 | L50: 1129187 | M50: 15921692 | N50: 17772706 | O50: 28630785
B51: 成長 | C51: 34.7 | D51: 66 | E51: 130 | F51: 35300.7 | G51: 112.9 | H51: 10648.1 | I51: 46292.4 | J51: 213.9 | K51: 3007.3 | L51: 6614 | M51: 75209.8 | N51: 85045 | O51: 131337.4
A52: 計 | B52: 面積 | C52: 124.96 | D52: 137.86 | E52: 260.01 | F52: 45929.28 | G52: 972.8 | H52: 12290.35 | I52: 59715.26 | J52: 2472.49 | K52: 6046.47 | L52: 17828.69 | M52: 247195.94 | N52: 273543.59 | O52: 333258.85
B53: 蓄積 | C53: 48240 | D53: 33147 | E53: 70305 | F53: 11358655 | G53: 218495 | H53: 2642306 | I53: 14371148 | J53: 222407 | K53: 739400 | L53: 2015688 | M53: 26834746 | N53: 29812241 | O53: 44183389
B54: 成長 | C54: 190.1 | D54: 364.9 | E54: 236.5 | F54: 63921.2 | G54: 1654 | H54: 14638.7 | I54: 81005.4 | J54: 700.3 | K54: 5473.9 | L54: 21111.1 | M54: 255322.7 | N54: 282608 | O54: 363613.4

Sheet 佐久
A1: 第5表 地域振興局別・人工林天然林別・資源構成表
A3: 佐久地域振興局(天然林) | O3: 単位 面積 : ha、蓄積 成長量 : ㎥
B4: 樹種 | C4: 針 葉 樹 | J4: 広 葉 樹 | O4: 計
C5: ス ギ | D5: ヒ ノ キ | E5: サ ワ ラ | F5: ア カ マ ツ | G5: カ ラ マ ツ | H5: そ の 他 針 | I5: 小 計 | J5: ク ヌ ギ | K5: ブ ナ | L5: ナ ラ | M5: そ の 他 広 | N5: 小 計
A6: 齢級
A7: 1 | B7: 面積 | I7: 0 | M7: 77.4 | N7: 77.4 | O7: =SUM(N7,I7) -> 77.4
B8: 蓄積 | I8: 0 | M8: 0 | N8: 0 | O8: 0
B9: 成長 | I9: 0 | M9: 0 | N9: 0 | O9: 0
A10: 2 | B10: 面積 | F10: 1.08 | G10: 0.39 | I10: 1.47 | L10: 1.38 | M10: 167.44 | N10: 168.82 | O10: 170.29
B11: 蓄積 | F11: 0 | G11: 0 | I11: 0 | L11: 21 | M11: 2224 | N11: 2245 | O11: 2245
B12: 成長 | F12: 0 | G12: 0 | I12: 0 | L12: 3.1 | M12: 321.5 | N12: 324.6 | O12: 324.6
A13: 3 | B13: 面積 | G13: 8.24 | I13: 8.24 | M13: 43.77 | N13: 43.77 | O13: 52.01
B14: 蓄積 | G14: 744 | I14: 744 | M14: 899 | N14: 899 | O14: 1643
B15: 成長 | G15: 66.1 | I15: 66.1 | M15: 78.2 | N15: 78.2 | O15: 144.3
A16: 4 | B16: 面積 | G16: 0.07 | I16: 0.07 | L16: 5.7 | M16: 110.85 | N16: 116.55 | O16: 116.62
B17: 蓄積 | G17: 8 | I17: 8 | L17: 169 | M17: 3188 | N17: 3357 | O17: 3365
B18: 成長 | G18: 0.5 | I18: 0.5 | L18: 11.6 | M18: 215.7 | N18: 227.3 | O18: 227.8
A19: 5 | B19: 面積 | D19: 1.05 | F19: 3.21 | G19: 0.29 | I19: 4.55 | J19: 0.66 | L19: 5.62 | M19: 95.64 | N19: 101.92 | O19: 106.47
B20: 蓄積 | D20: 77 | F20: 374 | G20: 44 | H20: 138 | I20: 633 | J20: 29 | L20: 244 | M20: 3862 | N20: 4135 | O20: 4768
B21: 成長 | D21: 5.5 | F21: 19.1 | G21: 2 | H21: 9.6 | I21: 36.2 | J21: 1.6 | L21: 12.8 | M21: 203.9 | N21: 218.3 | O21: 254.5
A22: 6 | B22: 面積 | F22: 4.86 | G22: 1 | I22: 5.86 | J22: 1.01 | L22: 26.1 | M22: 214.79 | N22: 241.9 | O22: 247.76
B23: 蓄積 | F23: 680 | G23: 185 | I23: 865 | J23: 54 | L23: 1319 | M23: 10410 | N23: 11783 | O23: 12648
B24: 成長 | F24: 25.1 | G24: 4.3 | I24: 29.4 | J24: 2.2 | L24: 53.6 | M24: 424.1 | N24: 479.9 | O24: 509.3
A25: 7 | B25: 面積 | F25: 6.05 | G25: 2.5 | H25: 0.18 | I25: 8.73 | J25: 1.59 | L25: 42.38 | M25: 506.5 | N25: 550.47 | O25: 559.2
B26: 蓄積 | F26: 901 | G26: 470 | H26: 10 | I26: 1381 | J26: 96 | L26: 2564 | M26: 28558 | N26: 31218 | O26: 32599
B27: 成長 | F27: 22.8 | G27: 10.3 | H27: 0.4 | I27: 33.5 | J27: 3 | L27: 79.5 | M27: 885.1 | N27: 967.6 | O27: 1001.1
A28: 8 | B28: 面積 | F28: 4.15 | G28: 0.17 | I28: 4.32 | J28: 0.27 | L28: 52.86 | M28: 428.69 | N28: 481.82 | O28: 486.14
B29: 蓄積 | F29: 738 | G29: 46 | I29: 784 | J29: 19 | L29: 3737 | M29: 28051 | N29: 31807 | O29: 32591
B30: 成長 | F30: 14.8 | G30: 1 | I30: 15.8 | J30: 0.7 | L30: 112.3 | M30: 846.5 | N30: 959.5 | O30: 975.3
A31: 9 | B31: 面積 | F31: 9.22 | G31: 0.49 | H31: 2.8 | I31: 12.51 | J31: 0.54 | L31: 75.88 | M31: 464.73 | N31: 541.15 | O31: 553.66
B32: 蓄積 | F32: 1707 | G32: 156 | H32: 533 | I32: 2396 | J32: 44 | L32: 5938 | M32: 36404 | N32: 42386 | O32: 44782
B33: 成長 | F33: 25.7 | G33: 2.7 | H33: 18.6 | I33: 47 | J33: 1.2 | L33: 164.8 | M33: 1013.8 | N33: 1179.8 | O33: 1226.8
A34: 10 | B34: 面積 | F34: 18.15 | G34: 0.09 | H34: 3.51 | I34: 21.75 | J34: 0.86 | L34: 60.7 | M34: 453.46 | N34: 515.02 | O34: 536.77
B35: 蓄積 | F35: 3457 | G35: 27 | H35: 534 | I35: 4018 | J35: 81 | L35: 5612 | M35: 40019 | N35: 45712 | O35: 49730
B36: 成長 | F36: 44.9 | G36: 0.4 | H36: 15.5 | I36: 60.8 | J36: 2.1 | L36: 142.5 | M36: 1014.1 | N36: 1158.7 | O36: 1219.5
A37: 11 | B37: 面積 | C37: 0.55 | D37: 0.08 | F37: 28.87 | G37: 0.05 | H37: 35.72 | I37: 65.27 | J37: 1.84 | L37: 100.17 | M37: 605.76 | N37: 707.77 | O37: 773.04
B38: 蓄積 | C38: 229 | D38: 26 | F38: 6202 | G38: 17 | H38: 7194 | I38: 13668 | J38: 181 | L38: 9983 | M38: 57546 | N38: 67710 | O38: 81378
B39: 成長 | C39: 3 | D39: 0.6 | F39: 68.4 | G39: 0.2 | H39: 174.5 | I39: 246.7 | J39: 3.5 | L39: 197.3 | M39: 1127.1 | N39: 1327.9 | O39: 1574.6
A40: 12 | B40: 面積 | F40: 126.3 | G40: 1.35 | H40: 26.36 | I40: 154.01 | J40: 1.39 | L40: 142.36 | M40: 1065.68 | N40: 1209.43 | O40: 1363.44
B41: 蓄積 | F41: 28548 | G41: 452 | H41: 6652 | I41: 35652 | J41: 121 | L41: 14468 | M41: 105209 | N41: 119798 | O41: 155450
B42: 成長 | F42: 261.9 | G42: 4.2 | H42: 134.5 | I42: 400.6 | J42: 2.2 | L42: 282.1 | M42: 2019.8 | N42: 2304.1 | O42: 2704.7
A43: 13 | B43: 面積 | C43: 0.03 | F43: 207.54 | G43: 3.97 | H43: 18.7 | I43: 230.24 | J43: 4.55 | L43: 303.1 | M43: 1927.01 | N43: 2234.66 | O43: 2464.9
B44: 蓄積 | C44: 14 | F44: 48243 | G44: 1395 | H44: 4899 | I44: 54551 | J44: 502 | L44: 32668 | M44: 206563 | N44: 239733 | O44: 294284
B45: 成長 | C45: 0.2 | F45: 426.5 | G45: 11.3 | H45: 96.9 | I45: 534.9 | J45: 8.2 | L45: 515.4 | M45: 3300.9 | N45: 3824.5 | O45: 4359.4
A46: 14 | B46: 面積 | E46: 0.2 | F46: 332.98 | G46: 0.98 | H46: 32.85 | I46: 367.01 | J46: 6.13 | L46: 523.26 | M46: 3759 | N46: 4288.39 | O46: 4655.4
B47: 蓄積 | E47: 84 | F47: 78537 | G47: 406 | H47: 9057 | I47: 88084 | J47: 677 | L47: 60246 | M47: 419994 | N47: 480917 | O47: 569001
B48: 成長 | E48: 1.5 | F48: 623.3 | G48: 3.3 | H48: 157.6 | I48: 785.7 | J48: 7.8 | L48: 695.9 | M48: 4900.2 | N48: 5603.9 | O48: 6389.6
A49: 15 以上 | B49: 面積 | E49: 0.05 | F49: 2001.85 | G49: 157.98 | H49: 1153.79 | I49: 3313.67 | J49: 14.78 | L49: 1140.03 | M49: 10788.62 | N49: 11943.43 | O49: 15257.1
B50: 蓄積 | E50: 24 | F50: 501302 | G50: 44837 | H50: 434989 | I50: 981152 | J50: 1802 | L50: 139248 | M50: 1273504 | N50: 1414554 | O50: 2395706
B51: 成長 | E51: 0 | F51: 1775.3 | G51: 18.6 | H51: 2265.8 | I51: 4059.7 | J51: 13.3 | L51: 866.8 | M51: 6643.3 | N51: 7523.4 | O51: 11583.1
A52: 計 | B52: 面積 | C52: =SUM(C7,C10,C13,C16,C19,C22,C25,C28,C31,C34,C37,C40,C43,C46,C49) -> 0.58 | D52: 1.13 | E52: 0.25 | F52: 2744.26 | G52: 177.57 | H52: 1273.91 | I52: =SUM(C52:H52) -> 4197.7 | J52: =SUM(J7,J10,J13,J16,J19,J22,J25,J28,J31,J34,J37,J40,J43,J46,J49) -> 33.62 | K52: 0 | L52: 2479.54 | M52: 20709.34 | N52: =SUM(J52:M52) -> 23222.5 | O52: =SUM(N52,I52) -> 27420.2
B53: 蓄積 | C53: 243 | D53: 103 | E53: 108 | F53: 670689 | G53: 48787 | H53: 464006 | I53: =SUM(C53:H53) -> 1183936 | J53: 3606 | K53: 0 | L53: 276217 | M53: 2216431 | N53: =SUM(J53:M53) -> 2496254 | O53: 3680190
B54: 成長 | C54: 3.2 | D54: 6.1 | E54: 1.5 | F54: 3307.8 | G54: 124.9 | H54: 2873.4 | I54: =SUM(C54:H54) -> 6316.9 | J54: 45.8 | K54: 0 | L54: 3137.7 | M54: 22994.2 | N54: =SUM(J54:M54) -> 26177.7 | O54: 32494.6

Sheet 上田
A1: 第5表 地域振興局別・人工林天然林別・資源構成表
A3: 上田地域振興局(天然林) | O3: 単位 面積 : ha、蓄積 成長量 : ㎥
B4: 樹種 | C4: 針 葉 樹 | J4: 広 葉 樹 | O4: 計
C5: ス ギ | D5: ヒ ノ キ | E5: サ ワ ラ | F5: ア カ マ ツ | G5: カ ラ マ ツ | H5: そ の 他 針 | I5: 小 計 | J5: ク ヌ ギ | K5: ブ ナ | L5: ナ ラ | M5: そ の 他 広 | N5: 小 計
A6: 齢級
A7: 1 | B7: 面積 | G7: 0.02 | I7: 0.02 | M7: 17.09 | N7: 17.09 | O7: =SUM(N7,I7) -> 17.11
B8: 蓄積 | G8: 0 | I8: 0 | M8: 0 | N8: 0 | O8: 0
B9: 成長 | G9: 0 | I9: 0 | M9: 0 | N9: 0 | O9: 0
A10: 2 | B10: 面積 | D10: 0.05 | G10: 0.4 | H10: 1.08 | I10: 1.53 | M10: 166.43 | N10: 166.43 | O10: 167.96
B11: 蓄積 | D11: 0 | G11: 0 | H11: 0 | I11: 0 | M11: 2418 | N11: 2418 | O11: 2418
B12: 成長 | D12: 0 | G12: 0 | H12: 0 | I12: 0 | M12: 349.6 | N12: 349.6 | O12: 349.6
A13: 3 | B13: 面積 | F13: 0.09 | I13: 0.09 | L13: 4.56 | M13: 26.27 | N13: 30.83 | O13: =SUM(N13,I13) -> 30.92
B14: 蓄積 | F14: 1 | I14: 1 | L14: 92 | M14: 533 | N14: 625 | O14: 626
B15: 成長 | F15: 0.1 | I15: 0.1 | L15: 7.7 | M15: 45.4 | N15: 53.1 | O15: 53.2
A16: 4 | B16: 面積 | F16: 0.32 | I16: 0.32 | J16: 0.61 | L16: 0.32 | M16: 42.24 | N16: 43.17 | O16: 43.49
B17: 蓄積 | F17: 27 | I17: 27 | J17: 21 | L17: 12 | M17: 1329 | N17: 1362 | O17: 1389
B18: 成長 | F18: 2.2 | I18: 2.2 | J18: 1.3 | L18: 0.8 | M18: 90.1 | N18: 92.2 | O18: 94.4
A19: 5 | B19: 面積 | D19: 0.41 | I19: 0.41 | J19: 1.22 | L19: 6.67 | M19: 52.31 | N19: 60.2 | O19: 60.61
B20: 蓄積 | D20: 41 | F20: 9 | I20: 50 | J20: 51 | L20: 287 | M20: 2101 | N20: 2439 | O20: 2489
B21: 成長 | D21: 2.9 | F21: 0.5 | I21: 3.4 | J21: 2.6 | L21: 14.8 | M21: 109.5 | N21: 126.9 | O21: 130.3
A22: 6 | B22: 面積 | C22: 0.11 | F22: 3.04 | I22: 3.15 | J22: 0.85 | L22: 20.43 | M22: 131.07 | N22: 152.35 | O22: 155.5
B23: 蓄積 | C23: 27 | F23: 406 | I23: 433 | J23: 41 | L23: 1050 | M23: 6266 | N23: 7357 | O23: 7790
B24: 成長 | C24: 1 | F24: 15.2 | I24: 16.2 | J24: 1.7 | L24: 42.6 | M24: 256 | N24: 300.3 | O24: 316.5
A25: 7 | B25: 面積 | F25: 9.13 | H25: 0.45 | I25: 9.58 | J25: 2.43 | L25: 53.79 | M25: 323.06 | N25: 379.28 | O25: 388.86
B26: 蓄積 | F26: 1461 | H26: 62 | I26: 1523 | J26: 136 | L26: 3316 | M26: 19015 | N26: 22467 | O26: 23990
B27: 成長 | F27: 34.8 | H27: 2.7 | I27: 37.5 | J27: 4 | L27: 102.8 | M27: 590 | N27: 696.8 | O27: 734.3
A28: 8 | B28: 面積 | C28: 0.12 | F28: 3.7 | H28: 1.44 | I28: 5.26 | J28: 4.27 | L28: 89.51 | M28: 454.3 | N28: 548.08 | O28: 553.34
B29: 蓄積 | C29: 40 | F29: 598 | H29: 224 | I29: 862 | J29: 302 | L29: 6315 | M29: 30562 | N29: 37179 | O29: 38041
B30: 成長 | C30: 0.9 | F30: 12.5 | H30: 8.6 | I30: 22 | J30: 9 | L30: 190.8 | M30: 921.3 | N30: 1121.1 | O30: 1143.1
A31: 9 | B31: 面積 | C31: 0.21 | D31: 0.11 | F31: 5.97 | I31: 6.29 | J31: 5.2 | L31: 75.92 | M31: 329.83 | N31: 410.95 | O31: 417.24
B32: 蓄積 | C32: 79 | D32: 21 | F32: 1025 | I32: 1125 | J32: 414 | L32: 6121 | M32: 25783 | N32: 32318 | O32: 33443
B33: 成長 | C33: 1.5 | D33: 0.6 | F33: 15.8 | I33: 17.9 | J33: 12 | L33: 171.8 | M33: 723.8 | N33: 907.6 | O33: 925.5
A34: 10 | B34: 面積 | F34: 25.31 | G34: 0.33 | H34: 1.3 | I34: 26.94 | J34: 3.97 | L34: 43.28 | M34: 449.07 | N34: 496.32 | O34: 523.26
B35: 蓄積 | F35: 5176 | G35: 100 | H35: 297 | I35: 5573 | J35: 337 | L35: 4008 | M35: 39840 | N35: 44185 | O35: 49758
B36: 成長 | F36: 67.5 | G36: 1.4 | H36: 8.9 | I36: 77.8 | J36: 8.4 | L36: 102.1 | M36: 1012.6 | N36: 1123.1 | O36: 1200.9
A37: 11 | B37: 面積 | F37: 74.97 | G37: 1.15 | H37: 4.07 | I37: 80.19 | J37: 3.63 | L37: 49.28 | M37: 361.26 | N37: 414.17 | O37: 494.36
B38: 蓄積 | F38: 16086 | G38: 381 | H38: 992 | I38: 17459 | J38: 361 | L38: 4893 | M38: 35013 | N38: 40267 | O38: 57726
B39: 成長 | F39: 177.1 | G39: 4.6 | H39: 21.9 | I39: 203.6 | J39: 7.2 | L39: 97.2 | M39: 691.7 | N39: 796.1 | O39: 999.7
A40: 12 | B40: 面積 | C40: 1.86 | D40: 0.03 | F40: 208.86 | G40: 1.81 | H40: 5.31 | I40: 217.87 | J40: 6.96 | L40: 53.36 | M40: 582.91 | N40: 643.23 | O40: 861.1
B41: 蓄積 | C41: 843 | D41: 13 | F41: 47876 | G41: 611 | H41: 1180 | I41: 50523 | J41: 750 | L41: 5680 | M41: 59303 | N41: 65733 | O41: 116256
B42: 成長 | C42: 9.3 | D42: 0.3 | F42: 432.2 | G42: 5.4 | H42: 23.8 | I42: 471 | J42: 14.6 | L42: 110.6 | M42: 1149.4 | N42: 1274.6 | O42: 1745.6
A43: 13 | B43: 面積 | C43: 0.17 | F43: 245.48 | G43: 2.34 | H43: 5.46 | I43: 253.45 | J43: 42.71 | L43: 92.89 | M43: 1105.56 | N43: 1241.16 | O43: 1494.61
B44: 蓄積 | C44: 80 | F44: 57510 | G44: 810 | H44: 1655 | I44: 60055 | J44: 4581 | L44: 10694 | M44: 124912 | N44: 140187 | O44: 200242
B45: 成長 | C45: 1 | F45: 516.9 | G45: 7.1 | H45: 30.9 | I45: 555.9 | J45: 73.7 | L45: 167.2 | M45: 2005 | N45: 2245.9 | O45: 2801.8
A46: 14 | B46: 面積 | F46: 316.88 | G46: 1.06 | H46: 3.09 | I46: 321.03 | J46: 107.69 | L46: 222.14 | M46: 2287.4 | N46: 2617.23 | O46: 2938.26
B47: 蓄積 | F47: 76652 | G47: 379 | H47: 962 | I47: 77993 | J47: 12218 | L47: 26894 | M47: 273924 | N47: 313036 | O47: 391029
B48: 成長 | F48: 597.9 | G48: 2.6 | H48: 16.5 | I48: 617 | J48: 142.3 | L48: 289.8 | M48: 3010 | N48: 3442.1 | O48: 4059.1
A49: 15 以上 | B49: 面積 | C49: 0.01 | D49: 0.03 | E49: 1.93 | F49: 2858.5 | G49: 0.88 | H49: 61.79 | I49: 2923.14 | J49: 200.29 | K49: 4 | L49: 515.3 | M49: 5842.11 | N49: 6561.7 | O49: 9484.84
B50: 蓄積 | C50: 5 | D50: 14 | E50: 676 | F50: 742446 | G50: 328 | H50: 24628 | I50: 768097 | J50: 24670 | K50: 758 | L50: 66154 | M50: 722096 | N50: 813678 | O50: 1581775
B51: 成長 | C51: 0 | D51: 0.2 | E51: 0.2 | F51: 2375.6 | G51: 0.2 | H51: 235.7 | I51: 2611.9 | J51: 200.4 | K51: 0.4 | L51: 430.7 | M51: 4521.9 | N51: 5153.4 | O51: 7765.3
A52: 計 | B52: 面積 | C52: =SUM(C7,C10,C13,C16,C19,C22,C25,C28,C31,C34,C37,C40,C43,C46,C49) -> 2.48 | D52: 0.63 | E52: 1.93 | F52: 3752.25 | G52: 7.99 | H52: 83.99 | I52: =SUM(C52:H52) -> 3849.27 | J52: =SUM(J7,J10,J13,J16,J19,J22,J25,J28,J31,J34,J37,J40,J43,J46,J49) -> 379.83 | K52: 4 | L52: 1227.45 | M52: 12170.91 | N52: =SUM(J52:M52) -> 13782.19 | O52: 17631.46
B53: 蓄積 | C53: 1074 | D53: 89 | E53: 676 | F53: 949273 | G53: 2609 | H53: 30000 | I53: =SUM(C53:H53) -> 983721 | J53: 43882 | K53: 758 | L53: 135516 | M53: 1343095 | N53: =SUM(J53:M53) -> 1523251 | O53: 2506972
B54: 成長 | C54: 13.7 | D54: 4 | E54: 0.2 | F54: 4248.3 | G54: 21.3 | H54: 349 | I54: =SUM(C54:H54) -> 4636.5 | J54: 477.2 | K54: 0.4 | L54: 1728.9 | M54: 15476.3 | N54: =SUM(J54:M54) -> 17682.8 | O54: 22319.3

Sheet 諏訪
A1: 第5表 地域振興局別・人工林天然林別・資源構成表
A3: 諏訪地域振興局(天然林) | O3: 単位 面積 : ha、蓄積 成長量 : ㎥
B4: 樹種 | C4: 針 葉 樹 | J4: 広 葉 樹 | O4: 計
C5: ス ギ | D5: ヒ ノ キ | E5: サ ワ ラ | F5: ア カ マ ツ | G5: カ ラ マ ツ | H5: そ の 他 針 | I5: 小 計 | J5: ク ヌ ギ | K5: ブ ナ | L5: ナ ラ | M5: そ の 他 広 | N5: 小 計
A6: 齢級
A7: 1 | B7: 面積 | C7: 0.08 | I7: 0.08 | L7: 0.05 | M7: 0.08 | N7: 0.13 | O7: =SUM(N7,I7) -> 0.21
B8: 蓄積 | C8: 0 | I8: 0 | L8: 0 | M8: 0 | N8: 0 | O8: 0
B9: 成長 | C9: 0 | I9: 0 | L9: 0 | M9: 0 | N9: 0 | O9: 0
A10: 2 | B10: 面積 | F10: 0.68 | I10: 0.68 | M10: 0.49 | N10: 0.49 | O10: 1.17
B11: 蓄積 | F11: 0 | I11: 0 | M11: 7 | N11: 7 | O11: 7
B12: 成長 | F12: 0 | I12: 0 | M12: 0.9 | N12: 0.9 | O12: 0.9
A13: 3 | B13: 面積 | I13: 0 | M13: 9.04 | N13: 9.04 | O13: 9.04
B14: 蓄積 | I14: 0 | M14: 169 | N14: 169 | O14: 169
B15: 成長 | I15: 0 | M15: 14.8 | N15: 14.8 | O15: 14.8
A16: 4 | B16: 面積 | G16: 0.72 | I16: 0.72 | M16: 13.95 | N16: 13.95 | O16: 14.67
B17: 蓄積 | G17: 59 | I17: 59 | M17: 339 | N17: 339 | O17: 398
B18: 成長 | G18: 3.5 | I18: 3.5 | M18: 23.1 | N18: 23.1 | O18: 26.6
A19: 5 | B19: 面積 | F19: 0.06 | I19: 0.06 | L19: 0.81 | M19: 27.75 | N19: 28.56 | O19: 28.62
B20: 蓄積 | F20: 8 | I20: 8 | L20: 30 | M20: 1090 | N20: 1120 | O20: 1128
B21: 成長 | F21: 0.4 | I21: 0.4 | L21: 1.5 | M21: 56.7 | N21: 58.2 | O21: 58.6
A22: 6 | B22: 面積 | D22: 0.35 | F22: 0.16 | H22: 9.35 | I22: 9.86 | L22: 0.76 | M22: 82.36 | N22: 83.12 | O22: 92.98
B23: 蓄積 | D23: 46 | F23: 23 | H23: 595 | I23: 664 | L23: 41 | M23: 4134 | N23: 4175 | O23: 4839
B24: 成長 | D24: 2 | F24: 0.8 | H24: 30 | I24: 32.8 | L24: 1.6 | M24: 168.8 | N24: 170.4 | O24: 203.2
A25: 7 | B25: 面積 | D25: 0.22 | E25: 0.21 | F25: 9.22 | H25: 5.2 | I25: 14.85 | L25: 3.48 | M25: 63.11 | N25: 66.59 | O25: 81.44
B26: 蓄積 | D26: 19 | E26: 36 | F26: 1182 | H26: 427 | I26: 1664 | L26: 192 | M26: 3309 | N26: 3501 | O26: 5165
B27: 成長 | D27: 0.7 | E27: 1.2 | F27: 28.3 | H27: 20.1 | I27: 50.3 | L27: 6.7 | M27: 103.3 | N27: 110 | O27: 160.3
A28: 8 | B28: 面積 | D28: 0.08 | F28: 3.4 | I28: 3.48 | L28: 7.16 | M28: 124.17 | N28: 131.33 | O28: 134.81
B29: 蓄積 | D29: 12 | F29: 610 | I29: 622 | L29: 374 | M29: 7839 | N29: 8213 | O29: 8835
B30: 成長 | D30: 0.3 | F30: 12.3 | I30: 12.6 | L30: 10.7 | M30: 236.2 | N30: 246.9 | O30: 259.5
A31: 9 | B31: 面積 | C31: 0.1 | E31: 0.42 | F31: 8.1 | H31: 2.6 | I31: 11.22 | L31: 3.21 | M31: 152.84 | N31: 156.05 | O31: 167.27
B32: 蓄積 | C32: 17 | E32: 91 | F32: 1450 | H32: 235 | I32: 1793 | L32: 261 | M32: 11164 | N32: 11425 | O32: 13218
B33: 成長 | C33: 0.3 | E33: 1.9 | F33: 22.6 | H33: 7.6 | I33: 32.4 | L33: 7.1 | M33: 303.6 | N33: 310.7 | O33: 343.1
A34: 10 | B34: 面積 | E34: 0.51 | F34: 14.34 | G34: 1.12 | H34: 7.22 | I34: 23.19 | L34: 11.46 | M34: 300.46 | N34: 311.92 | O34: 335.11
B35: 蓄積 | E35: 112 | F35: 2758 | G35: 182 | H35: 779 | I35: 3831 | L35: 868 | M35: 23010 | N35: 23878 | O35: 27709
B36: 成長 | E36: 2 | F36: 36.3 | G36: 2.8 | H36: 22 | I36: 63.1 | L36: 18.8 | M36: 586 | N36: 604.8 | O36: 667.9
A37: 11 | B37: 面積 | D37: 0.01 | E37: 0.46 | F37: 52.95 | G37: 10.33 | H37: 24.67 | I37: 88.42 | L37: 11.75 | M37: 237.05 | N37: 248.8 | O37: 337.22
B38: 蓄積 | D38: 3 | E38: 117 | F38: 11009 | G38: 1788 | H38: 3043 | I38: 15960 | L38: 1059 | M38: 21590 | N38: 22649 | O38: 38609
B39: 成長 | D39: 0 | E39: 1.8 | F39: 122 | G39: 25.1 | H39: 64.9 | I39: 213.8 | L39: 20.2 | M39: 423 | N39: 443.2 | O39: 657
A40: 12 | B40: 面積 | E40: 0.02 | F40: 181.76 | H40: 70.52 | I40: 252.3 | L40: 15.93 | M40: 505.96 | N40: 521.89 | O40: 774.19
B41: 蓄積 | E41: 5 | F41: 39343 | H41: 9743 | I41: 49091 | L41: 1383 | M41: 47501 | N41: 48884 | O41: 97975
B42: 成長 | E42: 0.1 | F42: 358.2 | H42: 189 | I42: 547.3 | L42: 25.5 | M42: 885.2 | N42: 910.7 | O42: 1458
A43: 13 | B43: 面積 | C43: 1.03 | D43: 0.14 | E43: 0.25 | F43: 328.49 | G43: 7.98 | H43: 190.17 | I43: 528.06 | L43: 112.35 | M43: 875.66 | N43: 988.01 | O43: 1516.07
B44: 蓄積 | C44: 327 | D44: 39 | E44: 69 | F44: 75336 | G44: 2447 | H44: 25163 | I44: 103381 | L44: 11184 | M44: 87624 | N44: 98808 | O44: 202189
B45: 成長 | C45: 4.7 | D45: 0.5 | E45: 1 | F45: 669 | G45: 27.8 | H45: 482.7 | I45: 1185.7 | L45: 153.1 | M45: 1413.3 | N45: 1566.4 | O45: 2752.1
A46: 14 | B46: 面積 | E46: 1.14 | F46: 793.77 | G46: 7.88 | H46: 217.77 | I46: 1020.56 | L46: 242.13 | M46: 1636.91 | N46: 1879.04 | O46: 2899.6
B47: 蓄積 | E47: 222 | F47: 187525 | G47: 1620 | H47: 32882 | I47: 222249 | L47: 25343 | M47: 168123 | N47: 193466 | O47: 415715
B48: 成長 | E48: 2.9 | F48: 1508.6 | G48: 16.2 | H48: 550 | I48: 2077.7 | L48: 306.5 | M48: 1983.7 | N48: 2290.2 | O48: 4367.9
A49: 15 以上 | B49: 面積 | C49: 0.74 | D49: 0.22 | E49: 15.75 | F49: 3291.6 | G49: 231.58 | H49: 1148.87 | I49: 4688.76 | J49: 0.31 | L49: 921 | M49: 5627.94 | N49: 6549.25 | O49: 11238.01
B50: 蓄積 | C50: 277 | D50: 67 | E50: 4295 | F50: 846739 | G50: 43772 | H50: 236447 | I50: 1131597 | J50: 28 | L50: 103279 | M50: 670673 | N50: 773980 | O50: 1905577
B51: 成長 | C51: 2.2 | D51: 0.5 | E51: 22.5 | F51: 4157.3 | G51: 24.6 | H51: 1641.4 | I51: 5848.5 | J51: 0 | L51: 674.2 | M51: 2632.2 | N51: 3306.4 | O51: 9154.9
A52: 計 | B52: 面積 | C52: =SUM(C7,C10,C13,C16,C19,C22,C25,C28,C31,C34,C37,C40,C43,C46,C49) -> 1.95 | D52: 1.02 | E52: 18.76 | F52: 4684.53 | G52: 259.61 | H52: 1676.37 | I52: =SUM(C52:H52) -> 6642.24 | J52: =SUM(J7,J10,J13,J16,J19,J22,J25,J28,J31,J34,J37,J40,J43,J46,J49) -> 0.31 | K52: 0 | L52: 1330.09 | M52: 9657.77 | N52: =SUM(J52:M52) -> 10988.17 | O52: 17630.41
B53: 蓄積 | C53: 621 | D53: 186 | E53: 4947 | F53: 1165983 | G53: 49868 | H53: 309314 | I53: =SUM(C53:H53) -> 1530919 | J53: 28 | K53: 0 | L53: 144014 | M53: 1046572 | N53: =SUM(J53:M53) -> 1190614 | O53: 2721533
B54: 成長 | C54: 7.2 | D54: 4 | E54: 33.4 | F54: 6915.8 | G54: 100 | H54: 3007.7 | I54: =SUM(C54:H54) -> 10068.1 | J54: 0 | K54: 0 | L54: 1225.9 | M54: 8830.8 | N54: =SUM(J54:M54) -> 10056.7 | O54: 20124.8

Sheet 上伊那
A1: 第5表 地域振興局別・人工林天然林別・資源構成表
A3: 上伊那地域振興局(天然林) | O3: 単位 面積 : ha、蓄積 成長量 : ㎥
B4: 樹種 | C4: 針 葉 樹 | J4: 広 葉 樹 | O4: 計
C5: ス ギ | D5: ヒ ノ キ | E5: サ ワ ラ | F5: ア カ マ ツ | G5: カ ラ マ ツ | H5: そ の 他 針 | I5: 小 計 | J5: ク ヌ ギ | K5: ブ ナ | L5: ナ ラ | M5: そ の 他 広 | N5: 小 計
A6: 齢級
A7: 1 | B7: 面積 | G7: 0.37 | I7: 0.37 | M7: 0.14 | N7: 0.14 | O7: =SUM(N7,I7) -> 0.51
B8: 蓄積 | G8: 0 | I8: 0 | M8: 0 | N8: 0 | O8: 0
B9: 成長 | G9: 0 | I9: 0 | M9: 0 | N9: 0 | O9: 0
A10: 2 | B10: 面積 | I10: 0 | J10: 0.02 | M10: 17.47 | N10: 17.49 | O10: 17.49
B11: 蓄積 | I11: 0 | J11: 0 | M11: 196 | N11: 196 | O11: 196
B12: 成長 | I12: 0 | J12: 0 | M12: 27.5 | N12: 27.5 | O12: 27.5
A13: 3 | B13: 面積 | D13: 1.23 | F13: 0.08 | G13: 0.48 | I13: 1.79 | M13: 7.27 | N13: 7.27 | O13: 9.06
B14: 蓄積 | D14: 35 | F14: 3 | G14: 36 | I14: 74 | M14: 160 | N14: 160 | O14: 234
B15: 成長 | D15: 6.7 | F15: 0.4 | G15: 3.3 | I15: 10.4 | M15: 14.6 | N15: 14.6 | O15: 25
A16: 4 | B16: 面積 | D16: 0.29 | F16: 1.49 | I16: 1.78 | L16: 0.16 | M16: 19.98 | N16: 20.14 | O16: 21.92
B17: 蓄積 | D17: 22 | F17: 113 | I17: 135 | L17: 4 | M17: 645 | N17: 649 | O17: 784
B18: 成長 | D18: 2 | F18: 9.4 | I18: 11.4 | L18: 0.3 | M18: 44.1 | N18: 44.4 | O18: 55.8
A19: 5 | B19: 面積 | D19: 1.41 | F19: 3.72 | H19: 0.3 | I19: 5.43 | L19: 2.31 | M19: 36.74 | N19: 39.05 | O19: 44.48
B20: 蓄積 | D20: 154 | F20: 431 | H20: 12 | I20: 597 | L20: 92 | M20: 1442 | N20: 1534 | O20: 2131
B21: 成長 | D21: 8.9 | F21: 21.9 | H21: 0.8 | I21: 31.6 | L21: 4.5 | M21: 76.7 | N21: 81.2 | O21: 112.8
A22: 6 | B22: 面積 | D22: 0.93 | F22: 2.93 | G22: 0.33 | H22: 0.04 | I22: 4.23 | L22: 0.71 | M22: 118.29 | N22: 119 | O22: 123.23
B23: 蓄積 | D23: 109 | F23: 402 | G23: 53 | H23: 3 | I23: 567 | L23: 33 | M23: 5678 | N23: 5711 | O23: 6278
B24: 成長 | D24: 4.7 | F24: 14.8 | G24: 1.2 | H24: 0.3 | I24: 21 | L24: 1.3 | M24: 231.4 | N24: 232.7 | O24: 253.7
A25: 7 | B25: 面積 | C25: 0.98 | D25: 0.23 | F25: 24.14 | H25: 0.6 | I25: 25.95 | J25: 0.83 | L25: 14.76 | M25: 160.28 | N25: 175.87 | O25: 201.82
B26: 蓄積 | C26: 204 | D26: 33 | F26: 2397 | H26: 18 | I26: 2652 | J26: 68 | L26: 898 | M26: 9414 | N26: 10380 | O26: 13032
B27: 成長 | C27: 5.3 | D27: 1 | F27: 68.9 | H27: 0.8 | I27: 76 | J27: 0.2 | L27: 29 | M27: 291.9 | N27: 321.1 | O27: 397.1
A28: 8 | B28: 面積 | D28: 0.22 | F28: 11.66 | H28: 0.61 | I28: 12.49 | J28: 0.16 | L28: 25.78 | M28: 310.68 | N28: 336.62 | O28: 349.11
B29: 蓄積 | D29: 40 | F29: 2056 | H29: 63 | I29: 2159 | J29: 14 | L29: 1827 | M29: 20744 | N29: 22585 | O29: 24744
B30: 成長 | D30: 1.1 | F30: 41.2 | H30: 2.2 | I30: 44.5 | J30: 0 | L30: 52.9 | M30: 626.7 | N30: 679.6 | O30: 724.1
A31: 9 | B31: 面積 | D31: 0.12 | F31: 25.67 | H31: 2.07 | I31: 27.86 | J31: 1.68 | L31: 24.6 | M31: 227.85 | N31: 254.13 | O31: 281.99
B32: 蓄積 | D32: 26 | F32: 4963 | H32: 244 | I32: 5233 | J32: 150 | L32: 2001 | M32: 18215 | N32: 20366 | O32: 25599
B33: 成長 | D33: 0.5 | F33: 74.9 | H33: 7.4 | I33: 82.8 | J33: 0.1 | L33: 53.9 | M33: 510.2 | N33: 564.2 | O33: 647
A34: 10 | B34: 面積 | C34: 0.15 | D34: 0.83 | F34: 43.42 | G34: 0.32 | H34: 0.42 | I34: 45.14 | J34: 0.18 | L34: 16 | M34: 555.28 | N34: 571.46 | O34: 616.6
B35: 蓄積 | C35: 44 | D35: 192 | F35: 8709 | G35: 64 | H35: 54 | I35: 9063 | J35: 16 | L35: 1489 | M35: 47703 | N35: 49208 | O35: 58271
B36: 成長 | C36: 0.6 | D36: 3.5 | F36: 114.5 | G36: 1 | H36: 1.6 | I36: 121.2 | J36: 0 | L36: 35.9 | M36: 1211.2 | N36: 1247.1 | O36: 1368.3
A37: 11 | B37: 面積 | C37: 0.1 | D37: 1.53 | F37: 177.06 | G37: 0.2 | H37: 0.31 | I37: 179.2 | J37: 1.08 | L37: 10.73 | M37: 516.71 | N37: 528.52 | O37: 707.72
B38: 蓄積 | C38: 33 | D38: 314 | F38: 38933 | G38: 43 | H38: 40 | I38: 39363 | J38: 94 | L38: 1105 | M38: 49875 | N38: 51074 | O38: 90437
B39: 成長 | C39: 0.5 | D39: 5.3 | F39: 430.9 | G39: 0.6 | H39: 0.9 | I39: 438.2 | J39: 0 | L39: 22.3 | M39: 978.5 | N39: 1000.8 | O39: 1439
A40: 12 | B40: 面積 | C40: 0.12 | D40: 0.89 | E40: 0.58 | F40: 603 | G40: 0.63 | H40: 2.03 | I40: 607.25 | J40: 1.28 | L40: 31.64 | M40: 876.68 | N40: 909.6 | O40: 1516.85
B41: 蓄積 | C41: 37 | D41: 216 | E41: 159 | F41: 138570 | G41: 181 | H41: 334 | I41: 139497 | J41: 115 | L41: 3356 | M41: 90938 | N41: 94409 | O41: 233906
B42: 成長 | C42: 0.4 | D42: 3.1 | E42: 2.2 | F42: 1261 | G42: 2.4 | H42: 6.4 | I42: 1275.5 | J42: 0 | L42: 64.7 | M42: 1744.3 | N42: 1809 | O42: 3084.5
A43: 13 | B43: 面積 | C43: 0.36 | D43: 0.78 | E43: 0.14 | F43: 1063.95 | G43: 4.99 | H43: 9.3 | I43: 1079.52 | J43: 4.82 | L43: 48.86 | M43: 1330.43 | N43: 1384.11 | O43: 2463.63
B44: 蓄積 | C44: 128 | D44: 214 | E44: 38 | F44: 251312 | G44: 1302 | H44: 1470 | I44: 254464 | J44: 429 | L44: 5644 | M44: 149065 | N44: 155138 | O44: 409602
B45: 成長 | C45: 1.7 | D45: 3 | E45: 0.5 | F45: 2221.4 | G45: 16.3 | H45: 27.9 | I45: 2270.8 | J45: 0 | L45: 86.7 | M45: 2320.3 | N45: 2407 | O45: 4677.8
A46: 14 | B46: 面積 | D46: 0.39 | E46: 0.58 | F46: 1531.36 | G46: 2.55 | H46: 11.84 | I46: 1546.72 | J46: 11.67 | L46: 158.67 | M46: 2703.2 | N46: 2873.54 | O46: 4420.26
B47: 蓄積 | D47: 112 | E47: 168 | F47: 372421 | G47: 768 | H47: 1763 | I47: 375232 | J47: 1056 | L47: 19435 | M47: 320780 | N47: 341271 | O47: 716503
B48: 成長 | D48: 1.3 | E48: 2.1 | F48: 2981.4 | G48: 8.4 | H48: 28 | I48: 3021.2 | J48: 0 | L48: 208.6 | M48: 3533.7 | N48: 3742.3 | O48: 6763.5
A49: 15 以上 | B49: 面積 | C49: 0.03 | D49: 6.19 | E49: 7.42 | F49: 5998.92 | G49: 6.58 | H49: 452.76 | I49: 6471.9 | J49: 43.8 | K49: 7.88 | L49: 345.8 | M49: 9561.02 | N49: 9958.5 | O49: 16430.4
B50: 蓄積 | C50: 12 | D50: 1703 | E50: 2266 | F50: 1606230 | G50: 2069 | H50: 95301 | I50: 1707581 | J50: 3893 | K50: 1095 | L50: 45431 | M50: 1192656 | N50: 1243075 | O50: 2950656
B51: 成長 | C51: 0 | D51: 3.8 | E51: 4.6 | F51: 8188.1 | G51: 14.4 | H51: 667.7 | I51: 8878.6 | J51: 0 | K51: 0 | L51: 204.7 | M51: 5643.2 | N51: 5847.9 | O51: 14726.5
A52: 計 | B52: 面積 | C52: =SUM(C7,C10,C13,C16,C19,C22,C25,C28,C31,C34,C37,C40,C43,C46,C49) -> 1.74 | D52: 15.04 | E52: 8.72 | F52: 9487.4 | G52: 16.45 | H52: 480.28 | I52: =SUM(C52:H52) -> 10009.63 | J52: =SUM(J7,J10,J13,J16,J19,J22,J25,J28,J31,J34,J37,J40,J43,J46,J49) -> 65.52 | K52: 7.88 | L52: 680.02 | M52: 16442.02 | N52: =SUM(J52:M52) -> 17195.44 | O52: 27205.07
B53: 蓄積 | C53: 458 | D53: 3170 | E53: 2631 | F53: 2426540 | G53: 4516 | H53: 99302 | I53: =SUM(C53:H53) -> 2536617 | J53: 5835 | K53: 1095 | L53: 81315 | M53: 1907511 | N53: =SUM(J53:M53) -> 1995756 | O53: 4532373
B54: 成長 | C54: 8.5 | D54: 44.9 | E54: 9.4 | F54: 15428.8 | G54: 47.6 | H54: 744 | I54: =SUM(C54:H54) -> 16283.2 | J54: 0.3 | K54: 0 | L54: 764.8 | M54: 17254.3 | N54: =SUM(J54:M54) -> 18019.4 | O54: 34302.6

Sheet 南信州
A1: 第5表 地域振興局別・人工林天然林別・資源構成表
A3: 南信州地域振興局(天然林) | O3: 単位 面積 : ha、蓄積 成長量 : ㎥
B4: 樹種 | C4: 針 葉 樹 | J4: 広 葉 樹 | O4: 計
C5: ス ギ | D5: ヒ ノ キ | E5: サ ワ ラ | F5: ア カ マ ツ | G5: カ ラ マ ツ | H5: そ の 他 針 | I5: 小 計 | J5: ク ヌ ギ | K5: ブ ナ | L5: ナ ラ | M5: そ の 他 広 | N5: 小 計
A6: 齢級
A7: 1 | B7: 面積 | I7: 0 | L7: 3.68 | M7: 1.08 | N7: 4.76 | O7: =SUM(N7,I7) -> 4.76
B8: 蓄積 | I8: 0 | L8: 0 | M8: 0 | N8: 0 | O8: 0
B9: 成長 | I9: 0 | L9: 0 | M9: 0 | N9: 0 | O9: 0
A10: 2 | B10: 面積 | I10: 0 | L10: 0.47 | M10: 10.23 | N10: 10.7 | O10: 10.7
B11: 蓄積 | I11: 0 | L11: 7 | M11: 143 | N11: 150 | O11: 150
B12: 成長 | I12: 0 | L12: 1 | M12: 19.8 | N12: 20.8 | O12: 20.8
A13: 3 | B13: 面積 | D13: 0.52 | I13: 0.52 | L13: 3.25 | M13: 45.54 | N13: 48.79 | O13: 49.31
B14: 蓄積 | D14: 30 | I14: 30 | L14: 83 | M14: 956 | N14: 1039 | O14: 1069
B15: 成長 | D15: 6.5 | I15: 6.5 | L15: 7.1 | M15: 81.9 | N15: 89 | O15: 95.5
A16: 4 | B16: 面積 | C16: 0.08 | D16: 1.27 | F16: 1.34 | H16: 0.24 | I16: 2.93 | L16: 2.58 | M16: 106.11 | N16: 108.69 | O16: 111.62
B17: 蓄積 | C17: 8 | D17: 105 | F17: 117 | H17: 6 | I17: 236 | L17: 78 | M17: 3035 | N17: 3113 | O17: 3349
B18: 成長 | C18: 0.6 | D18: 9.8 | F18: 9.6 | H18: 0.4 | I18: 20.4 | L18: 5.1 | M18: 198.9 | N18: 204 | O18: 224.4
A19: 5 | B19: 面積 | D19: 0.67 | F19: 2.78 | H19: 0.08 | I19: 3.53 | L19: 1.55 | M19: 121 | N19: 122.55 | O19: 126.08
B20: 蓄積 | D20: 74 | F20: 263 | H20: 4 | I20: 341 | L20: 63 | M20: 4710 | N20: 4773 | O20: 5114
B21: 成長 | D21: 4.5 | F21: 13.7 | H21: 0.3 | I21: 18.5 | L21: 3 | M21: 223.4 | N21: 226.4 | O21: 244.9
A22: 6 | B22: 面積 | D22: 0.88 | F22: 2.79 | H22: 0.39 | I22: 4.06 | J22: 0.07 | L22: 5.96 | M22: 324.42 | N22: 330.45 | O22: 334.51
B23: 蓄積 | D23: 113 | F23: 382 | H23: 25 | I23: 520 | J23: 5 | L23: 323 | M23: 15912 | N23: 16240 | O23: 16760
B24: 成長 | D24: 4.9 | F24: 14.1 | H24: 1.4 | I24: 20.4 | J24: 0.1 | L24: 12.2 | M24: 604 | N24: 616.3 | O24: 636.7
A25: 7 | B25: 面積 | D25: 0.27 | F25: 35.76 | H25: 0.64 | I25: 36.67 | J25: 2.23 | L25: 26.09 | M25: 809.19 | N25: 837.51 | O25: 874.18
B26: 蓄積 | D26: 46 | F26: 5648 | H26: 43 | I26: 5737 | J26: 176 | L26: 1674 | M26: 47453 | N26: 49303 | O26: 55040
B27: 成長 | D27: 1.6 | F27: 135.2 | H27: 1.9 | I27: 138.7 | J27: 0.3 | L27: 53.9 | M27: 1532.2 | N27: 1586.4 | O27: 1725.1
A28: 8 | B28: 面積 | D28: 5.14 | F28: 13.93 | H28: 1.5 | I28: 20.57 | J28: 0.95 | L28: 48.83 | M28: 832.08 | N28: 881.86 | O28: 902.43
B29: 蓄積 | D29: 950 | F29: 2487 | H29: 85 | I29: 3522 | J29: 76 | L29: 3454 | M29: 57048 | N29: 60578 | O29: 64100
B30: 成長 | D30: 24.7 | F30: 50.5 | H30: 3.1 | I30: 78.3 | J30: 0.1 | L30: 99.3 | M30: 1639.9 | N30: 1739.3 | O30: 1817.6
A31: 9 | B31: 面積 | D31: 0.08 | F31: 18.85 | G31: 8 | H31: 2.97 | I31: 29.9 | J31: 0.29 | L31: 60.19 | M31: 835.63 | N31: 896.11 | O31: 926.01
B32: 蓄積 | D32: 14 | F32: 3657 | G32: 1749 | H32: 311 | I32: 5731 | J32: 24 | L32: 4996 | M32: 64850 | N32: 69870 | O32: 75601
B33: 成長 | D33: 0.3 | F33: 55.7 | G33: 36.5 | H33: 10.6 | I33: 103.1 | J33: 0 | L33: 135.3 | M33: 1732.5 | N33: 1867.8 | O33: 1970.9
A34: 10 | B34: 面積 | D34: 14.26 | F34: 27.11 | H34: 26.57 | I34: 67.94 | J34: 0.02 | K34: 3.86 | L34: 53.91 | M34: 1148.73 | N34: 1206.52 | O34: 1274.46
B35: 蓄積 | D35: 3190 | F35: 6126 | H35: 2875 | I35: 12191 | J35: 2 | K35: 304 | L35: 4852 | M35: 96549 | N35: 101707 | O35: 113898
B36: 成長 | D36: 57.6 | F36: 74 | H36: 78.7 | I36: 210.3 | J36: 0 | K36: 9.6 | L36: 115.8 | M36: 2257.9 | N36: 2383.3 | O36: 2593.6
A37: 11 | B37: 面積 | C37: 0.92 | D37: 2.33 | F37: 229.42 | G37: 2.92 | H37: 52.44 | I37: 288.03 | J37: 0.58 | K37: 33.07 | L37: 66.01 | M37: 2085.58 | N37: 2185.24 | O37: 2473.27
B38: 蓄積 | C38: 345 | D38: 579 | F38: 50865 | G38: 741 | H38: 7128 | I38: 59658 | J38: 47 | K38: 3168 | L38: 6743 | M38: 194656 | N38: 204614 | O38: 264272
B39: 成長 | C39: 4.5 | D39: 9.2 | F39: 561 | G39: 10.4 | H39: 168.4 | I39: 753.5 | J39: 0 | K39: 82.3 | L39: 133.7 | M39: 3777.4 | N39: 3993.4 | O39: 4746.9
A40: 12 | B40: 面積 | C40: 0.39 | D40: 0.67 | F40: 537.39 | G40: 3.46 | H40: 47.98 | I40: 589.89 | J40: 3.38 | K40: 2.2 | L40: 137.32 | M40: 3420.6 | N40: 3563.5 | O40: 4153.39
B41: 蓄積 | C41: 143 | D41: 181 | F41: 122563 | G41: 996 | H41: 5745 | I41: 129628 | J41: 274 | K41: 240 | L41: 14575 | M41: 335789 | N41: 350878 | O41: 480506
B42: 成長 | C42: 1.9 | D42: 2.4 | F42: 1362.5 | G42: 12.9 | H42: 109.2 | I42: 1488.9 | J42: 0 | K42: 5.8 | L42: 275.7 | M42: 6316.8 | N42: 6598.3 | O42: 8087.2
A43: 13 | B43: 面積 | C43: 0.37 | D43: 0.76 | E43: 1.78 | F43: 826.14 | G43: 0.04 | H43: 131.08 | I43: 960.17 | J43: 3.96 | K43: 11.31 | L43: 293.22 | M43: 4994.32 | N43: 5302.81 | O43: 6262.98
B44: 蓄積 | C44: 104 | D44: 210 | E44: 484 | F44: 196638 | G44: 12 | H44: 17699 | I44: 215147 | J44: 320 | K44: 991 | L44: 33687 | M44: 541044 | N44: 576042 | O44: 791189
B45: 成長 | C45: 1 | D45: 2.7 | E45: 6.4 | F45: 2022 | G45: 0.2 | H45: 325.6 | I45: 2357.9 | J45: 0.1 | K45: 23.7 | L45: 509.4 | M45: 8384.5 | N45: 8917.7 | O45: 11275.6
A46: 14 | B46: 面積 | C46: 1.02 | D46: 1.46 | F46: 1153.1 | G46: 1.02 | H46: 89.75 | I46: 1246.35 | J46: 5.72 | L46: 585.31 | M46: 6423.61 | N46: 7014.64 | O46: 8260.99
B47: 蓄積 | C47: 392 | D47: 426 | F47: 282549 | G47: 362 | H47: 13270 | I47: 296999 | J47: 428 | L47: 70044 | M47: 748033 | N47: 818505 | O47: 1115504
B48: 成長 | C48: 3.7 | D48: 5 | F48: 2194.6 | G48: 4.4 | H48: 226.3 | I48: 2434 | J48: 0 | L48: 856.9 | M48: 9311.2 | N48: 10168.1 | O48: 12602.1
A49: 15 以上 | B49: 面積 | C49: 0.55 | D49: 22.81 | E49: 30.62 | F49: 4656.62 | G49: 11.24 | H49: 3798.06 | I49: 8519.9 | J49: 13.06 | K49: 191.29 | L49: 2173.04 | M49: 30590.53 | N49: 32967.92 | O49: 41487.82
B50: 蓄積 | C50: 217 | D50: 6990 | E50: 9570 | F50: 1233105 | G50: 3126 | H50: 794837 | I50: 2047845 | J50: 966 | K50: 32752 | L50: 275720 | M50: 3715304 | N50: 4024742 | O50: 6072587
B51: 成長 | C51: 1.9 | D51: 46.2 | E51: 11.5 | F51: 5845.6 | G51: 11.8 | H51: 3417.5 | I51: 9334.5 | J51: 0.2 | K51: 119.1 | L51: 1875.3 | M51: 19993.4 | N51: 21988 | O51: 31322.5
A52: 計 | B52: 面積 | C52: =SUM(C7,C10,C13,C16,C19,C22,C25,C28,C31,C34,C37,C40,C43,C46,C49) -> 3.33 | D52: 51.12 | E52: 32.4 | F52: 7505.23 | G52: 26.68 | H52: 4151.7 | I52: =SUM(C52:H52) -> 11770.46 | J52: =SUM(J7,J10,J13,J16,J19,J22,J25,J28,J31,J34,J37,J40,J43,J46,J49) -> 30.26 | K52: 241.73 | L52: 3461.41 | M52: 51748.65 | N52: =SUM(J52:M52) -> 55482.05 | O52: 67252.51
B53: 蓄積 | C53: 1209 | D53: 12908 | E53: 10054 | F53: 1904400 | G53: 6986 | H53: 842028 | I53: =SUM(C53:H53) -> 2777585 | J53: 2318 | K53: 37455 | L53: 416299 | M53: 5825482 | N53: =SUM(J53:M53) -> 6281554 | O53: 9059139
B54: 成長 | C54: 13.6 | D54: 175.4 | E54: 17.9 | F54: 12338.5 | G54: 76.2 | H54: 4343.4 | I54: =SUM(C54:H54) -> 16965 | J54: 0.8 | K54: 240.5 | L54: 4083.7 | M54: 56073.8 | N54: =SUM(J54:M54) -> 60398.8 | O54: 77363.8

Sheet 木曽
A1: 第5表 地域振興局別・人工林天然林別・資源構成表
A3: 木曽地域振興局(天然林) | O3: 単位 面積 : ha、蓄積 成長量 : ㎥
B4: 樹種 | C4: 針 葉 樹 | J4: 広 葉 樹 | O4: 計
C5: ス ギ | D5: ヒ ノ キ | E5: サ ワ ラ | F5: ア カ マ ツ | G5: カ ラ マ ツ | H5: そ の 他 針 | I5: 小 計 | J5: ク ヌ ギ | K5: ブ ナ | L5: ナ ラ | M5: そ の 他 広 | N5: 小 計
A6: 齢級
A7: 1 | B7: 面積 | I7: 0 | M7: 11.19 | N7: 11.19 | O7: =SUM(N7,I7) -> 11.19
B8: 蓄積 | I8: 0 | M8: 0 | N8: 0 | O8: 0
B9: 成長 | I9: 0 | M9: 0 | N9: 0 | O9: 0
A10: 2 | B10: 面積 | F10: 0.06 | I10: 0.06 | M10: 1.34 | N10: 1.34 | O10: 1.4
B11: 蓄積 | F11: 0 | I11: 0 | M11: 15 | N11: 15 | O11: 15
B12: 成長 | F12: 0 | I12: 0 | M12: 1.9 | N12: 1.9 | O12: 1.9
A13: 3 | B13: 面積 | D13: 2.72 | I13: 2.72 | M13: 6.63 | N13: 6.63 | O13: 9.35
B14: 蓄積 | D14: 96 | I14: 96 | M14: 146 | N14: 146 | O14: 242
B15: 成長 | D15: 18.5 | I15: 18.5 | M15: 13 | N15: 13 | O15: 31.5
A16: 4 | B16: 面積 | F16: 0.13 | G16: 0.06 | I16: 0.19 | L16: 0.27 | M16: 20.87 | N16: 21.14 | O16: 21.33
B17: 蓄積 | F17: 10 | G17: 6 | I17: 16 | L17: 9 | M17: 691 | N17: 700 | O17: 716
B18: 成長 | F18: 0.8 | G18: 0.4 | I18: 1.2 | L18: 0.6 | M18: 46.9 | N18: 47.5 | O18: 48.7
A19: 5 | B19: 面積 | D19: 5.53 | F19: 0.81 | H19: 0.11 | I19: 6.45 | L19: 0.04 | M19: 30.37 | N19: 30.41 | O19: 36.86
B20: 蓄積 | D20: 568 | F20: 78 | H20: 5 | I20: 651 | L20: 2 | M20: 1128 | N20: 1130 | O20: 1781
B21: 成長 | D21: 32.9 | F21: 3.9 | H21: 0.3 | I21: 37.1 | L21: 0.1 | M21: 61.2 | N21: 61.3 | O21: 98.4
A22: 6 | B22: 面積 | D22: 0.95 | H22: 0.55 | I22: 1.5 | L22: 7.66 | M22: 93.24 | N22: 100.9 | O22: 102.4
B23: 蓄積 | D23: 134 | H23: 35 | I23: 169 | L23: 372 | M23: 4312 | N23: 4684 | O23: 4853
B24: 成長 | D24: 5.8 | H24: 1.8 | I24: 7.6 | L24: 14.4 | M24: 176.2 | N24: 190.6 | O24: 198.2
A25: 7 | B25: 面積 | D25: 0.15 | F25: 1.45 | G25: 1.56 | H25: 0.1 | I25: 3.26 | L25: 19.74 | M25: 124.3 | N25: 144.04 | O25: 147.3
B26: 蓄積 | D26: 12 | F26: 207 | G26: 84 | H26: 8 | I26: 311 | L26: 1123 | M26: 6998 | N26: 8121 | O26: 8432
B27: 成長 | D27: 0.4 | F27: 5.8 | G27: 1.8 | H27: 0.4 | I27: 8.4 | L27: 37.5 | M27: 217.3 | N27: 254.8 | O27: 263.2
A28: 8 | B28: 面積 | D28: 0.42 | F28: 4.07 | G28: 0.09 | H28: 0.88 | I28: 5.46 | L28: 25.74 | M28: 209.89 | N28: 235.63 | O28: 241.09
B29: 蓄積 | D29: 75 | F29: 665 | G29: 19 | H29: 74 | I29: 833 | L29: 1802 | M29: 13704 | N29: 15506 | O29: 16339
B30: 成長 | D30: 2 | F30: 15.3 | G30: 0.4 | H30: 2.8 | I30: 20.5 | L30: 52.1 | M30: 413.2 | N30: 465.3 | O30: 485.8
A31: 9 | B31: 面積 | D31: 0.05 | F31: 5.67 | G31: 0.18 | H31: 1.77 | I31: 7.67 | L31: 18.05 | M31: 288.17 | N31: 306.22 | O31: 313.89
B32: 蓄積 | D32: 10 | F32: 1018 | G32: 42 | H32: 171 | I32: 1241 | L32: 1421 | M32: 21996 | N32: 23417 | O32: 24658
B33: 成長 | D33: 0.2 | F33: 15.9 | G33: 0.8 | H33: 5.5 | I33: 22.4 | L33: 37.9 | M33: 607.6 | N33: 645.5 | O33: 667.9
A34: 10 | B34: 面積 | D34: 1.17 | F34: 11.16 | G34: 1.58 | H34: 1.2 | I34: 15.11 | J34: 0.64 | L34: 56.65 | M34: 424.3 | N34: 481.59 | O34: 496.7
B35: 蓄積 | D35: 219 | F35: 2247 | G35: 392 | H35: 145 | I35: 3003 | J35: 44 | L35: 5037 | M35: 36140 | N35: 41221 | O35: 44224
B36: 成長 | D36: 4.4 | F36: 29.9 | G36: 5.9 | H36: 4.4 | I36: 44.6 | J36: 0.1 | L36: 117.2 | M36: 919.9 | N36: 1037.2 | O36: 1081.8
A37: 11 | B37: 面積 | D37: 1.55 | E37: 0.71 | F37: 64.48 | G37: 1.14 | H37: 2.01 | I37: 69.89 | L37: 110.16 | M37: 933.63 | N37: 1043.79 | O37: 1113.68
B38: 蓄積 | D38: 374 | E38: 171 | F38: 13785 | G38: 310 | H38: 309 | I38: 14949 | L38: 10695 | M38: 89561 | N38: 100256 | O38: 115205
B39: 成長 | D39: 5.8 | E39: 2.7 | F39: 152.4 | G39: 4.3 | H39: 6.2 | I39: 171.4 | L39: 208.8 | M39: 1760.7 | N39: 1969.5 | O39: 2140.9
A40: 12 | B40: 面積 | D40: 0.63 | E40: 0.39 | F40: 299.72 | G40: 0.68 | H40: 4.79 | I40: 306.21 | L40: 184.68 | M40: 1709.14 | N40: 1893.82 | O40: 2200.03
B41: 蓄積 | D41: 169 | E41: 103 | F41: 67006 | G41: 173 | H41: 739 | I41: 68190 | L41: 18807 | M41: 173636 | N41: 192443 | O41: 260633
B42: 成長 | D42: 2.3 | E42: 1.4 | F42: 619.8 | G42: 2.2 | H42: 14.1 | I42: 639.8 | L42: 359.9 | M42: 3293.8 | N42: 3653.7 | O42: 4293.5
A43: 13 | B43: 面積 | C43: 0.12 | D43: 1 | E43: 2.62 | F43: 495.01 | G43: 5.99 | H43: 5.36 | I43: 510.1 | L43: 204.28 | M43: 2699.44 | N43: 2903.72 | O43: 3413.82
B44: 蓄積 | C44: 43 | D44: 249 | E44: 677 | F44: 114277 | G44: 1666 | H44: 879 | I44: 117791 | L44: 22925 | M44: 292886 | N44: 315811 | O44: 433602
B45: 成長 | C45: 0.6 | D45: 3.6 | E45: 9.9 | F45: 1034.1 | G45: 21.1 | H45: 16.9 | I45: 1086.2 | L45: 350.3 | M45: 4653.8 | N45: 5004.1 | O45: 6090.3
A46: 14 | B46: 面積 | C46: 0.92 | D46: 3.79 | E46: 18.1 | F46: 689.01 | G46: 1.7 | H46: 21.21 | I46: 734.73 | L46: 362.64 | M46: 3756.3 | N46: 4118.94 | O46: 4853.67
B47: 蓄積 | C47: 343 | D47: 1074 | E47: 5201 | F47: 163066 | G47: 495 | H47: 3881 | I47: 174060 | L47: 42298 | M47: 429870 | N47: 472168 | O47: 646228
B48: 成長 | C48: 3.3 | D48: 12.7 | E48: 62.5 | F48: 1335.1 | G48: 4 | H48: 61.9 | I48: 1479.5 | L48: 462.3 | M48: 4913.6 | N48: 5375.9 | O48: 6855.4
A49: 15 以上 | B49: 面積 | C49: 1.06 | D49: 42.12 | E49: 129.66 | F49: 2200.39 | G49: 16.72 | H49: 375.17 | I49: 2765.12 | J49: 0.08 | L49: 972.11 | M49: 11420.73 | N49: 12392.92 | O49: 15158.04
B50: 蓄積 | C50: 427 | D50: 12338 | E50: 36662 | F50: 583851 | G50: 5179 | H50: 83999 | I50: 722456 | J50: 6 | L50: 122422 | M50: 1406982 | N50: 1529410 | O50: 2251866
B51: 成長 | C51: 0.1 | D51: 14.3 | E51: 66.1 | F51: 2639.2 | G51: 24.4 | H51: 503 | I51: 3247.1 | J51: 0 | L51: 589.8 | M51: 5797.5 | N51: 6387.3 | O51: 9634.4
A52: 計 | B52: 面積 | C52: =SUM(C7,C10,C13,C16,C19,C22,C25,C28,C31,C34,C37,C40,C43,C46,C49) -> 2.1 | D52: 60.08 | E52: 151.48 | F52: 3771.96 | G52: 29.7 | H52: 413.15 | I52: =SUM(C52:H52) -> 4428.47 | J52: =SUM(J7,J10,J13,J16,J19,J22,J25,J28,J31,J34,J37,J40,J43,J46,J49) -> 0.72 | K52: 0 | L52: 1962.02 | M52: 21729.54 | N52: =SUM(J52:M52) -> 23692.28 | O52: 28120.75
B53: 蓄積 | C53: 813 | D53: 15318 | E53: 42814 | F53: 946210 | G53: 8366 | H53: 90245 | I53: =SUM(C53:H53) -> 1103766 | J53: 50 | K53: 0 | L53: 226913 | M53: 2478065 | N53: =SUM(J53:M53) -> 2705028 | O53: 3808794
B54: 成長 | C54: 4 | D54: 102.9 | E54: 142.6 | F54: 5852.2 | G54: 65.3 | H54: 617.3 | I54: =SUM(C54:H54) -> 6784.3 | J54: 0.1 | K54: 0 | L54: 2230.9 | M54: 22876.6 | N54: =SUM(J54:M54) -> 25107.6 | O54: 31891.9

Sheet 松本
A1: 第5表 地域振興局別・人工林天然林別・資源構成表
A3: 松本地域振興局(天然林) | O3: 単位 面積 : ha、蓄積 成長量 : ㎥
B4: 樹種 | C4: 針 葉 樹 | J4: 広 葉 樹 | O4: 計
C5: ス ギ | D5: ヒ ノ キ | E5: サ ワ ラ | F5: ア カ マ ツ | G5: カ ラ マ ツ | H5: そ の 他 針 | I5: 小 計 | J5: ク ヌ ギ | K5: ブ ナ | L5: ナ ラ | M5: そ の 他 広 | N5: 小 計
A6: 齢級
A7: 1 | B7: 面積 | I7: 0 | M7: 14.5 | N7: 14.5 | O7: =SUM(N7,I7) -> 14.5
B8: 蓄積 | I8: 0 | M8: 0 | N8: 0 | O8: 0
B9: 成長 | I9: 0 | M9: 0 | N9: 0 | O9: 0
A10: 2 | B10: 面積 | I10: 0 | M10: 202.82 | N10: 202.82 | O10: 202.82
B11: 蓄積 | I11: 0 | M11: 2625 | N11: 2625 | O11: 2625
B12: 成長 | I12: 0 | M12: 359 | N12: 359 | O12: 359
A13: 3 | B13: 面積 | F13: 1.23 | I13: 1.23 | M13: 51.45 | N13: 51.45 | O13: 52.68
B14: 蓄積 | F14: 72 | I14: 72 | M14: 1177 | N14: 1177 | O14: 1249
B15: 成長 | F15: 9.6 | I15: 9.6 | M15: 103.3 | N15: 103.3 | O15: 112.9
A16: 4 | B16: 面積 | D16: 0.16 | F16: 3.44 | I16: 3.6 | J16: 0.85 | L16: 0.59 | M16: 32.66 | N16: 34.1 | O16: 37.7
B17: 蓄積 | D17: 8 | F17: 304 | I17: 312 | J17: 48 | L17: 17 | M17: 925 | N17: 990 | O17: 1302
B18: 成長 | D18: 0.8 | F18: 25 | I18: 25.8 | J18: 2.2 | L18: 1.2 | M18: 63 | N18: 66.4 | O18: 92.2
A19: 5 | B19: 面積 | D19: 0.61 | F19: 5.07 | G19: 0.13 | I19: 5.81 | J19: 4.05 | L19: 3.55 | M19: 73.54 | N19: 81.14 | O19: 86.95
B20: 蓄積 | D20: 31 | F20: 410 | G20: 17 | I20: 458 | J20: 252 | L20: 141 | M20: 2837 | N20: 3230 | O20: 3688
B21: 成長 | D21: 1.9 | F21: 22.2 | G21: 0.9 | I21: 25 | J21: 8 | L21: 7.3 | M21: 151.9 | N21: 167.2 | O21: 192.2
A22: 6 | B22: 面積 | F22: 7.02 | G22: 2.33 | H22: 0.07 | I22: 9.42 | J22: 11.25 | L22: 19.07 | M22: 227.18 | N22: 257.5 | O22: 266.92
B23: 蓄積 | F23: 735 | G23: 373 | H23: 4 | I23: 1112 | J23: 812 | L23: 971 | M23: 10233 | N23: 12016 | O23: 13128
B24: 成長 | F24: 31.1 | G24: 13.4 | H24: 0.2 | I24: 44.7 | J24: 18.6 | L24: 39.7 | M24: 416.5 | N24: 474.8 | O24: 519.5
A25: 7 | B25: 面積 | F25: 12.42 | G25: 0.08 | H25: 0.02 | I25: 12.52 | J25: 23.66 | L25: 33.71 | M25: 488.58 | N25: 545.95 | O25: 558.47
B26: 蓄積 | F26: 1612 | G26: 14 | H26: 0 | I26: 1626 | J26: 1838 | L26: 2026 | M26: 25963 | N26: 29827 | O26: 31453
B27: 成長 | F27: 44.7 | G27: 0.4 | H27: 0 | I27: 45.1 | J27: 28.8 | L27: 62.3 | M27: 800.7 | N27: 891.8 | O27: 936.9
A28: 8 | B28: 面積 | C28: 0.09 | D28: 0.15 | F28: 5.68 | G28: 0.06 | I28: 5.98 | J28: 48.59 | L28: 60.21 | M28: 602.04 | N28: 710.84 | O28: 716.82
B29: 蓄積 | C29: 23 | D29: 10 | F29: 952 | G29: 12 | I29: 997 | J29: 3846 | L29: 4155 | M29: 38134 | N29: 46135 | O29: 47132
B30: 成長 | C30: 0.6 | D30: 0.4 | F30: 20.1 | G30: 0.3 | I30: 21.4 | J30: 35.5 | L30: 125.7 | M30: 1154.2 | N30: 1315.4 | O30: 1336.8
A31: 9 | B31: 面積 | D31: 0.08 | E31: 0.06 | F31: 22.23 | G31: 0.37 | H31: 0.16 | I31: 22.9 | J31: 43.71 | L31: 62.88 | M31: 444.5 | N31: 551.09 | O31: 573.99
B32: 蓄積 | D32: 6 | E32: 9 | F32: 3891 | G32: 82 | H32: 20 | I32: 4008 | J32: 3670 | L32: 5023 | M32: 33530 | N32: 42223 | O32: 46231
B33: 成長 | D33: 0.2 | E33: 0.2 | F33: 60.3 | G33: 1.8 | H33: 0.7 | I33: 63.2 | J33: 17.7 | L33: 139.2 | M33: 922.4 | N33: 1079.3 | O33: 1142.5
A34: 10 | B34: 面積 | C34: 0.47 | D34: 0.03 | E34: 0.07 | F34: 43.14 | G34: 0.33 | H34: 1.05 | I34: 45.09 | J34: 65.49 | L34: 62.39 | M34: 767.09 | N34: 894.97 | O34: 940.06
B35: 蓄積 | C35: 192 | D35: 5 | E35: 14 | F35: 7834 | G35: 84 | H35: 120 | I35: 8249 | J35: 5554 | L35: 5463 | M35: 64578 | N35: 75595 | O35: 83844
B36: 成長 | C36: 2.8 | D36: 0.1 | E36: 0.3 | F36: 108.3 | G36: 1.2 | H36: 3.3 | I36: 116 | J36: 13 | L36: 140.3 | M36: 1643 | N36: 1796.3 | O36: 1912.3
A37: 11 | B37: 面積 | E37: 0.08 | F37: 70.3 | G37: 0.8 | H37: 5.86 | I37: 77.04 | J37: 29.76 | L37: 61.86 | M37: 788.7 | N37: 880.32 | O37: 957.36
B38: 蓄積 | E38: 16 | F38: 14128 | G38: 209 | H38: 700 | I38: 15053 | J38: 2591 | L38: 6132 | M38: 72761 | N38: 81484 | O38: 96537
B39: 成長 | E39: 0.3 | F39: 159.6 | G39: 2.8 | H39: 16.1 | I39: 178.8 | J39: 0 | L39: 120.7 | M39: 1406.7 | N39: 1527.4 | O39: 1706.2
A40: 12 | B40: 面積 | C40: 0.04 | E40: 0.13 | F40: 151.61 | G40: 2.65 | H40: 3.75 | I40: 158.18 | J40: 46.01 | L40: 69.21 | M40: 1183.1 | N40: 1298.32 | O40: 1456.5
B41: 蓄積 | C41: 18 | E41: 24 | F41: 31498 | G41: 594 | H41: 606 | I41: 32740 | J41: 3928 | L41: 7174 | M41: 116824 | N41: 127926 | O41: 160666
B42: 成長 | C42: 0.2 | E42: 0.5 | F42: 305.6 | G42: 7.8 | H42: 11.5 | I42: 325.6 | J42: 0 | L42: 134.5 | M42: 2191.5 | N42: 2326 | O42: 2651.6
A43: 13 | B43: 面積 | E43: 0.08 | F43: 407.06 | G43: 349.91 | H43: 29 | I43: 786.05 | J43: 125.94 | L43: 183.53 | M43: 2814.87 | N43: 3124.34 | O43: 3910.39
B44: 蓄積 | E44: 16 | F44: 87062 | G44: 74487 | H44: 3477 | I44: 165042 | J44: 10470 | L44: 19848 | M44: 291229 | N44: 321547 | O44: 486589
B45: 成長 | E45: 0.3 | F45: 818.7 | G45: 938.1 | H45: 64.2 | I45: 1821.3 | J45: 0 | L45: 314.1 | M45: 4649.2 | N45: 4963.3 | O45: 6784.6
A46: 14 | B46: 面積 | C46: 0.12 | E46: 2.16 | F46: 854.28 | G46: 56.62 | H46: 19.54 | I46: 932.72 | J46: 275.78 | L46: 328.61 | M46: 6110.75 | N46: 6715.14 | O46: 7647.86
B47: 蓄積 | C47: 57 | E47: 337 | F47: 189434 | G47: 12458 | H47: 2659 | I47: 204945 | J47: 23401 | L47: 37001 | M47: 668311 | N47: 728713 | O47: 933658
B48: 成長 | C48: 0.5 | E48: 4.8 | F48: 1546.4 | G48: 149.5 | H48: 46.2 | I48: 1747.4 | J48: 0 | L48: 432 | M48: 7949.6 | N48: 8381.6 | O48: 10129
A49: 15 以上 | B49: 面積 | C49: 0.58 | D49: 0.21 | E49: 37.08 | F49: 6203.5 | G49: 21.66 | H49: 782.71 | I49: 7045.74 | J49: 242.98 | K49: 15.31 | L49: 546.65 | M49: 14966.09 | N49: 15771.03 | O49: 22816.77
B50: 蓄積 | C50: 278 | D50: 37 | E50: 7393 | F50: 1476825 | G50: 5796 | H50: 166308 | I50: 1656637 | J50: 20550 | K50: 2057 | L50: 65467 | M50: 1711456 | N50: 1799530 | O50: 3456167
B51: 成長 | C51: 1.2 | D51: 0.4 | E51: 22 | F51: 6170 | G51: 18.8 | H51: 656 | I51: 6868.4 | J51: 0 | K51: 3.1 | L51: 446.5 | M51: 10077.3 | N51: 10526.9 | O51: 17395.3
A52: 計 | B52: 面積 | C52: =SUM(C7,C10,C13,C16,C19,C22,C25,C28,C31,C34,C37,C40,C43,C46,C49) -> 1.3 | D52: 1.24 | E52: 39.66 | F52: 7786.98 | G52: 434.94 | H52: 842.16 | I52: =SUM(C52:H52) -> 9106.28 | J52: =SUM(J7,J10,J13,J16,J19,J22,J25,J28,J31,J34,J37,J40,J43,J46,J49) -> 918.07 | K52: 15.31 | L52: 1432.26 | M52: 28767.87 | N52: =SUM(J52:M52) -> 31133.51 | O52: 40239.79
B53: 蓄積 | C53: 568 | D53: 97 | E53: 7809 | F53: 1814757 | G53: 94126 | H53: 173894 | I53: =SUM(C53:H53) -> 2091251 | J53: 76960 | K53: 2057 | L53: 153418 | M53: 3040583 | N53: =SUM(J53:M53) -> 3273018 | O53: 5364269
B54: 成長 | C54: 5.3 | D54: 3.8 | E54: 28.4 | F54: 9321.6 | G54: 1135 | H54: 798.2 | I54: =SUM(C54:H54) -> 11292.3 | J54: 123.8 | K54: 3.1 | L54: 1963.5 | M54: 31888.3 | N54: =SUM(J54:M54) -> 33978.7 | O54: 45271

Sheet 北アルプス
A1: 第5表 地域振興局別・人工林天然林別・資源構成表
A3: 北アルプス地域振興局(天然林) | O3: 単位 面積 : ha、蓄積 成長量 : ㎥
B4: 樹種 | C4: 針 葉 樹 | J4: 広 葉 樹 | O4: 計
C5: ス ギ | D5: ヒ ノ キ | E5: サ ワ ラ | F5: ア カ マ ツ | G5: カ ラ マ ツ | H5: そ の 他 針 | I5: 小 計 | J5: ク ヌ ギ | K5: ブ ナ | L5: ナ ラ | M5: そ の 他 広 | N5: 小 計
A6: 齢級
A7: 1 | B7: 面積 | F7: 0.11 | I7: 0.11 | L7: 0.42 | M7: 34.76 | N7: 35.18 | O7: =SUM(N7,I7) -> 35.29
B8: 蓄積 | F8: 0 | I8: 0 | L8: 0 | M8: 0 | N8: 0 | O8: 0
B9: 成長 | F9: 0 | I9: 0 | L9: 0 | M9: 0 | N9: 0 | O9: 0
A10: 2 | B10: 面積 | I10: 0 | M10: 12.64 | N10: 12.64 | O10: 12.64
B11: 蓄積 | I11: 0 | M11: 120 | N11: 120 | O11: 120
B12: 成長 | I12: 0 | M12: 15.8 | N12: 15.8 | O12: 15.8
A13: 3 | B13: 面積 | I13: 0 | M13: 12.58 | N13: 12.58 | O13: 12.58
B14: 蓄積 | I14: 0 | M14: 267 | N14: 267 | O14: 267
B15: 成長 | I15: 0 | M15: 24.7 | N15: 24.7 | O15: 24.7
A16: 4 | B16: 面積 | D16: 0.16 | F16: 0.11 | I16: 0.27 | M16: 12.81 | N16: 12.81 | O16: 13.08
B17: 蓄積 | D17: 5 | F17: 3 | I17: 8 | M17: 365 | N17: 365 | O17: 373
B18: 成長 | D18: 0.5 | F18: 0.3 | I18: 0.8 | M18: 24.8 | N18: 24.8 | O18: 25.6
A19: 5 | B19: 面積 | D19: 0.23 | F19: 0.05 | I19: 0.28 | J19: 0.6 | K19: 0.45 | L19: 3.34 | M19: 125.96 | N19: 130.35 | O19: 130.63
B20: 蓄積 | D20: 7 | F20: 6 | I20: 13 | J20: 30 | K20: 11 | L20: 127 | M20: 4241 | N20: 4409 | O20: 4422
B21: 成長 | D21: 0.5 | F21: 0.3 | I21: 0.8 | J21: 0.9 | K21: 0.9 | L21: 6.6 | M21: 231.6 | N21: 240 | O21: 240.8
A22: 6 | B22: 面積 | C22: 1.5 | F22: 0.48 | I22: 1.98 | J22: 0.14 | L22: 15.17 | M22: 312.48 | N22: 327.79 | O22: 329.77
B23: 蓄積 | C23: 212 | F23: 71 | I23: 283 | J23: 8 | L23: 693 | M23: 12704 | N23: 13405 | O23: 13688
B24: 成長 | C24: 11.5 | F24: 2.6 | I24: 14.1 | J24: 0.2 | L24: 28 | M24: 505.1 | N24: 533.3 | O24: 547.4
A25: 7 | B25: 面積 | C25: 0.1 | F25: 1.6 | G25: 0.08 | H25: 0.03 | I25: 1.81 | J25: 0.48 | K25: 7.58 | L25: 11.73 | M25: 445.59 | N25: 465.38 | O25: 467.19
B26: 蓄積 | C26: 19 | F26: 229 | G26: 10 | H26: 2 | I26: 260 | J26: 30 | K26: 242 | L26: 624 | M26: 22698 | N26: 23594 | O26: 23854
B27: 成長 | C27: 0.8 | F27: 6.4 | G27: 0.3 | H27: 0.1 | I27: 7.6 | J27: 0.4 | K27: 13.6 | L27: 19.2 | M27: 695.2 | N27: 728.4 | O27: 736
A28: 8 | B28: 面積 | F28: 2.52 | I28: 2.52 | J28: 1.57 | L28: 22.73 | M28: 443.44 | N28: 467.74 | O28: 470.26
B29: 蓄積 | F29: 361 | I29: 361 | J29: 115 | L29: 1387 | M29: 25456 | N29: 26958 | O29: 27319
B30: 成長 | F30: 9.1 | I30: 9.1 | J30: 0.9 | L30: 41.9 | M30: 777.5 | N30: 820.3 | O30: 829.4
A31: 9 | B31: 面積 | C31: 1.32 | D31: 2.64 | F31: 1.64 | G31: 0.17 | H31: 1.56 | I31: 7.33 | J31: 6.24 | K31: 15.13 | L31: 20.79 | M31: 578.89 | N31: 621.05 | O31: 628.38
B32: 蓄積 | C32: 350 | D32: 454 | F32: 297 | G32: 38 | H32: 133 | I32: 1272 | J32: 460 | K32: 711 | L32: 1480 | M32: 38043 | N32: 40694 | O32: 41966
B33: 成長 | C33: 6.8 | D33: 12.3 | F33: 4.6 | G33: 0.8 | H33: 4.1 | I33: 28.6 | J33: 1.7 | K33: 25.6 | L33: 39.1 | M33: 994.6 | N33: 1061 | O33: 1089.6
A34: 10 | B34: 面積 | C34: 0.1 | F34: 11.21 | I34: 11.31 | J34: 3.13 | K34: 6.23 | L34: 66.07 | M34: 762.09 | N34: 837.52 | O34: 848.83
B35: 蓄積 | C35: 32 | F35: 1928 | I35: 1960 | J35: 227 | K35: 343 | L35: 5286 | M35: 57721 | N35: 63577 | O35: 65537
B36: 成長 | C36: 0.5 | F36: 27.5 | I36: 28 | J36: 0.5 | K36: 10.6 | L36: 134.3 | M36: 1468.8 | N36: 1614.2 | O36: 1642.2
A37: 11 | B37: 面積 | F37: 21.8 | I37: 21.8 | J37: 0.26 | K37: 78.9 | L37: 44.17 | M37: 954.61 | N37: 1077.94 | O37: 1099.74
B38: 蓄積 | F38: 4221 | I38: 4221 | J38: 16 | K38: 4425 | L38: 3881 | M38: 81914 | N38: 90236 | O38: 94457
B39: 成長 | F39: 48.2 | I39: 48.2 | J39: 0 | K39: 115.4 | L39: 72.6 | M39: 1526.4 | N39: 1714.4 | O39: 1762.6
A40: 12 | B40: 面積 | C40: 0.4 | F40: 18.26 | G40: 0.17 | H40: 0.3 | I40: 19.13 | J40: 0.99 | K40: 104.44 | L40: 100.01 | M40: 1472.23 | N40: 1677.67 | O40: 1696.8
B41: 蓄積 | C41: 126 | F41: 3649 | G41: 25 | H41: 49 | I41: 3849 | J41: 75 | K41: 7844 | L41: 8849 | M41: 131366 | N41: 148134 | O41: 151983
B42: 成長 | C42: 1.5 | F42: 35.8 | G42: 0.3 | H42: 1 | I42: 38.6 | J42: 0 | K42: 186.8 | L42: 162.6 | M42: 2415.6 | N42: 2765 | O42: 2803.6
A43: 13 | B43: 面積 | F43: 74.29 | G43: 0.15 | H43: 2.14 | I43: 76.58 | J43: 6.58 | K43: 23.51 | L43: 170.96 | M43: 2467.53 | N43: 2668.58 | O43: 2745.16
B44: 蓄積 | F44: 14840 | G44: 32 | H44: 291 | I44: 15163 | J44: 472 | K44: 1350 | L44: 16771 | M44: 229600 | N44: 248193 | O44: 263356
B45: 成長 | F45: 145.4 | G45: 0.4 | H45: 5.6 | I45: 151.4 | J45: 0 | K45: 31.8 | L45: 272.8 | M45: 3790.2 | N45: 4094.8 | O45: 4246.2
A46: 14 | B46: 面積 | C46: 8.78 | D46: 1.34 | F46: 175.25 | G46: 0.78 | H46: 2.88 | I46: 189.03 | J46: 16.5 | K46: 43.18 | L46: 244.04 | M46: 3178.07 | N46: 3481.79 | O46: 3670.82
B47: 蓄積 | C47: 1535 | D47: 190 | F47: 36851 | G47: 246 | H47: 427 | I47: 39249 | J47: 1277 | K47: 3930 | L47: 25329 | M47: 315578 | N47: 346114 | O47: 385363
B48: 成長 | C48: 15.6 | D48: 2.9 | F48: 308.2 | G48: 2.4 | H48: 7.6 | I48: 336.7 | J48: 0 | K48: 76.8 | L48: 319.4 | M48: 4039.6 | N48: 4435.8 | O48: 4772.5
A49: 15 以上 | B49: 面積 | C49: 86.75 | D49: 1.76 | E49: 6.68 | F49: 1342.01 | G49: 0.49 | H49: 403.53 | I49: 1841.22 | J49: 49.72 | K49: 1822.98 | L49: 1047.31 | M49: 16993.66 | N49: 19913.67 | O49: 21754.89
B50: 蓄積 | C50: 36102 | D50: 396 | E50: 1231 | F50: 309189 | G50: 116 | H50: 84957 | I50: 431991 | J50: 3790 | K50: 226946 | L50: 115282 | M50: 1791017 | N50: 2137035 | O50: 2569026
B51: 成長 | C51: 28 | D51: 0.6 | E51: 3.1 | F51: 1320.8 | G51: 0.1 | H51: 376.6 | I51: 1729.2 | J51: 0 | K51: 1224.1 | L51: 594.8 | M51: 6525.5 | N51: 8344.4 | O51: 10073.6
A52: 計 | B52: 面積 | C52: =SUM(C7,C10,C13,C16,C19,C22,C25,C28,C31,C34,C37,C40,C43,C46,C49) -> 98.95 | D52: 6.13 | E52: 6.68 | F52: 1649.33 | G52: 1.84 | H52: 410.44 | I52: =SUM(C52:H52) -> 2173.37 | J52: =SUM(J7,J10,J13,J16,J19,J22,J25,J28,J31,J34,J37,J40,J43,J46,J49) -> 86.21 | K52: 2102.4 | L52: 1746.74 | M52: 27807.34 | N52: =SUM(J52:M52) -> 31742.69 | O52: 33916.06
B53: 蓄積 | C53: 38376 | D53: 1052 | E53: 1231 | F53: 371645 | G53: 467 | H53: 85859 | I53: =SUM(C53:H53) -> 498630 | J53: 6500 | K53: 245802 | L53: 179709 | M53: 2711090 | N53: =SUM(J53:M53) -> 3143101 | O53: 3641731
B54: 成長 | C54: 64.7 | D54: 16.8 | E54: 3.1 | F54: 1909.2 | G54: 4.3 | H54: 395 | I54: =SUM(C54:H54) -> 2393.1 | J54: 4.6 | K54: 1685.6 | L54: 1691.3 | M54: 23035.4 | N54: =SUM(J54:M54) -> 26416.9 | O54: 28810

Sheet 長野
A1: 第5表 地域振興局別・人工林天然林別・資源構成表
A3: 長野地域振興局(天然林) | O3: 単位 面積 : ha、蓄積 成長量 : ㎥
B4: 樹種 | C4: 針 葉 樹 | J4: 広 葉 樹 | O4: 計
C5: ス ギ | D5: ヒ ノ キ | E5: サ ワ ラ | F5: ア カ マ ツ | G5: カ ラ マ ツ | H5: そ の 他 針 | I5: 小 計 | J5: ク ヌ ギ | K5: ブ ナ | L5: ナ ラ | M5: そ の 他 広 | N5: 小 計
A6: 齢級
A7: 1 | B7: 面積 | I7: 0 | M7: 11.96 | N7: 11.96 | O7: =SUM(N7,I7) -> 11.96
B8: 蓄積 | I8: 0 | M8: 0 | N8: 0 | O8: 0
B9: 成長 | I9: 0 | M9: 0 | N9: 0 | O9: 0
A10: 2 | B10: 面積 | F10: 0.08 | I10: 0.08 | J10: 0.71 | L10: 1.85 | M10: 22.09 | N10: 24.65 | O10: 24.73
B11: 蓄積 | F11: 0 | I11: 0 | J11: 13 | L11: 24 | M11: 270 | N11: 307 | O11: 307
B12: 成長 | F12: 0 | I12: 0 | J12: 4.1 | L12: 3.2 | M12: 39.3 | N12: 46.6 | O12: 46.6
A13: 3 | B13: 面積 | I13: 0 | L13: 1.79 | M13: 35.86 | N13: 37.65 | O13: 37.65
B14: 蓄積 | I14: 0 | L14: 42 | M14: 875 | N14: 917 | O14: 917
B15: 成長 | I15: 0 | L15: 3.5 | M15: 79.4 | N15: 82.9 | O15: 82.9
A16: 4 | B16: 面積 | F16: 0.03 | I16: 0.03 | J16: 0.04 | L16: 1.32 | M16: 62.13 | N16: 63.49 | O16: 63.52
B17: 蓄積 | F17: 2 | I17: 2 | J17: 1 | L17: 37 | M17: 1927 | N17: 1965 | O17: 1967
B18: 成長 | F18: 0.2 | I18: 0.2 | J18: 0.1 | L18: 2.4 | M18: 130.6 | N18: 133.1 | O18: 133.3
A19: 5 | B19: 面積 | C19: 0.25 | D19: 0.37 | F19: 3.84 | H19: 2.9 | I19: 7.36 | J19: 1.75 | L19: 12.9 | M19: 75.27 | N19: 89.92 | O19: 97.28
B20: 蓄積 | C20: 50 | D20: 28 | F20: 284 | H20: 102 | I20: 464 | J20: 110 | L20: 525 | M20: 3065 | N20: 3700 | O20: 4164
B21: 成長 | C21: 3.5 | D21: 1.6 | F21: 14.8 | H21: 7.1 | I21: 27 | J21: 3.6 | L21: 26.8 | M21: 162 | N21: 192.4 | O21: 219.4
A22: 6 | B22: 面積 | D22: 0.67 | F22: 5.08 | H22: 6.9 | I22: 12.65 | J22: 0.5 | K22: 1.24 | L22: 25.62 | M22: 326.1 | N22: 353.46 | O22: 366.11
B23: 蓄積 | D23: 86 | F23: 677 | H23: 315 | I23: 1078 | J23: 36 | K23: 38 | L23: 1335 | M23: 15676 | N23: 17085 | O23: 18163
B24: 成長 | D24: 3.8 | F24: 25.9 | H24: 17 | I24: 46.7 | J24: 0.7 | K24: 2.5 | L24: 54.7 | M24: 629.9 | N24: 687.8 | O24: 734.5
A25: 7 | B25: 面積 | C25: 0.07 | F25: 3.23 | G25: 0.06 | H25: 0.82 | I25: 4.18 | J25: 11.11 | K25: 6.16 | L25: 67.41 | M25: 677.94 | N25: 762.62 | O25: 766.8
B26: 蓄積 | C26: 18 | F26: 514 | G26: 14 | H26: 54 | I26: 600 | J26: 861 | K26: 215 | L26: 4167 | M26: 38939 | N26: 44182 | O26: 44782
B27: 成長 | C27: 0.7 | F27: 12.4 | G27: 0.5 | H27: 2.4 | I27: 16 | J27: 13.1 | K27: 12.4 | L27: 129.7 | M27: 1206.4 | N27: 1361.6 | O27: 1377.6
A28: 8 | B28: 面積 | C28: 0.03 | D28: 0.14 | F28: 7.96 | I28: 8.13 | J28: 17.89 | L28: 139.14 | M28: 633.26 | N28: 790.29 | O28: 798.42
B29: 蓄積 | C29: 10 | D29: 22 | F29: 1228 | I29: 1260 | J29: 1364 | L29: 9873 | M29: 42614 | N29: 53851 | O29: 55111
B30: 成長 | C30: 0.3 | D30: 0.7 | F30: 25.5 | I30: 26.5 | J30: 11.4 | L30: 299.3 | M30: 1290.2 | N30: 1600.9 | O30: 1627.4
A31: 9 | B31: 面積 | F31: 6.16 | H31: 3.57 | I31: 9.73 | J31: 17.15 | K31: 10.6 | L31: 143.88 | M31: 654.61 | N31: 826.24 | O31: 835.97
B32: 蓄積 | F32: 1184 | H32: 221 | I32: 1405 | J32: 1499 | K32: 817 | L32: 11555 | M32: 49929 | N32: 63800 | O32: 65205
B33: 成長 | F33: 17.9 | H33: 6.9 | I33: 24.8 | J33: 7.5 | K33: 28.6 | L33: 322.6 | M33: 1386.3 | N33: 1745 | O33: 1769.8
A34: 10 | B34: 面積 | C34: 0.32 | F34: 17.71 | G34: 1.62 | H34: 0.13 | I34: 19.78 | J34: 11.39 | K34: 1.5 | L34: 62.06 | M34: 610.55 | N34: 685.5 | O34: 705.28
B35: 蓄積 | C35: 107 | F35: 3608 | G35: 285 | H35: 14 | I35: 4014 | J35: 1016 | K35: 126 | L35: 5725 | M35: 52773 | N35: 59640 | O35: 63654
B36: 成長 | C36: 2.1 | F36: 47 | G36: 5.1 | H36: 0.4 | I36: 54.6 | J36: 1.5 | K36: 3.5 | L36: 145.8 | M36: 1341.8 | N36: 1492.6 | O36: 1547.2
A37: 11 | B37: 面積 | C37: 0.59 | F37: 41.2 | G37: 0.07 | I37: 41.86 | J37: 14.9 | K37: 5.02 | L37: 62.89 | M37: 1037.22 | N37: 1120.03 | O37: 1161.89
B38: 蓄積 | C38: 207 | F38: 8433 | G38: 25 | I38: 8665 | J38: 1313 | K38: 470 | L38: 6441 | M38: 97714 | N38: 105938 | O38: 114603
B39: 成長 | C39: 3.3 | F39: 93.6 | G39: 0.4 | I39: 97.3 | J39: 0 | K39: 11.3 | L39: 128.3 | M39: 1907.1 | N39: 2046.7 | O39: 2144
A40: 12 | B40: 面積 | C40: 0.61 | F40: 75.27 | G40: 2.42 | H40: 22.3 | I40: 100.6 | J40: 29.09 | K40: 6.7 | L40: 100.07 | M40: 1753.97 | N40: 1889.83 | O40: 1990.43
B41: 蓄積 | C41: 301 | F41: 17079 | G41: 702 | H41: 2240 | I41: 20322 | J41: 2600 | K41: 497 | L41: 10909 | M41: 181883 | N41: 195889 | O41: 216211
B42: 成長 | C42: 3.3 | F42: 156 | G42: 9.1 | H42: 42.6 | I42: 211 | J42: 0 | K42: 11.9 | L42: 206.4 | M42: 3352.1 | N42: 3570.4 | O42: 3781.4
A43: 13 | B43: 面積 | C43: 3.62 | F43: 207.06 | G43: 0.32 | H43: 0.31 | I43: 211.31 | J43: 116.45 | K43: 7.7 | L43: 331.88 | M43: 3900.65 | N43: 4356.68 | O43: 4567.99
B44: 蓄積 | C44: 1842 | F44: 46449 | G44: 89 | H44: 54 | I44: 48434 | J44: 10208 | K44: 847 | L44: 39047 | M44: 440209 | N44: 490311 | O44: 538745
B45: 成長 | C45: 19.6 | F45: 400.9 | G45: 1.1 | H45: 1 | I45: 422.6 | J45: 0 | K45: 18.6 | L45: 555.2 | M45: 6254.7 | N45: 6828.5 | O45: 7251.1
A46: 14 | B46: 面積 | C46: 0.28 | D46: 0.29 | F46: 388.79 | G46: 0.84 | H46: 1.32 | I46: 391.52 | J46: 310.43 | K46: 2.89 | L46: 602.21 | M46: 6565.68 | N46: 7481.21 | O46: 7872.73
B47: 蓄積 | C47: 135 | D47: 88 | F47: 92434 | G47: 267 | H47: 256 | I47: 93180 | J47: 27168 | K47: 117 | L47: 73869 | M47: 771863 | N47: 873017 | O47: 966197
B48: 成長 | C48: 1.1 | D48: 0.9 | F48: 628 | G48: 2.6 | H48: 3.8 | I48: 636.4 | J48: 0 | K48: 2.1 | L48: 749.6 | M48: 7932.2 | N48: 8683.9 | O48: 9320.3
A49: 15 以上 | B49: 面積 | C49: 0.23 | E49: 0.13 | F49: 3277.17 | H49: 554.78 | I49: 3832.31 | J49: 390.91 | K49: 478.1 | L49: 1182.37 | M49: 15882.43 | N49: 17933.81 | O49: 21766.12
B50: 蓄積 | C50: 141 | E50: 35 | F50: 805275 | H50: 114593 | I50: 920044 | J50: 33802 | K50: 67740 | L50: 151286 | M50: 1945748 | N50: 2198576 | O50: 3118620
B51: 成長 | C51: 0.7 | E51: 0 | F51: 2500.3 | H51: 352.9 | I51: 2853.9 | J51: 0 | K51: 59.3 | L51: 817.6 | M51: 8423.4 | N51: 9300.3 | O51: 12154.2
A52: 計 | B52: 面積 | C52: =SUM(C7,C10,C13,C16,C19,C22,C25,C28,C31,C34,C37,C40,C43,C46,C49) -> 6 | D52: 1.47 | E52: 0.13 | F52: 4033.58 | G52: 5.33 | H52: 593.03 | I52: =SUM(C52:H52) -> 4639.54 | J52: =SUM(J7,J10,J13,J16,J19,J22,J25,J28,J31,J34,J37,J40,J43,J46,J49) -> 922.32 | K52: 519.91 | L52: 2735.39 | M52: 32249.72 | N52: =SUM(J52:M52) -> 36427.34 | O52: 41066.88
B53: 蓄積 | C53: 2811 | D53: 224 | E53: 35 | F53: 977167 | G53: 1382 | H53: 117849 | I53: =SUM(C53:H53) -> 1099468 | J53: 79991 | K53: 70867 | L53: 314835 | M53: 3643485 | N53: =SUM(J53:M53) -> 4109178 | O53: 5208646
B54: 成長 | C54: 34.6 | D54: 7 | E54: 0 | F54: 3922.5 | G54: 18.8 | H54: 434.1 | I54: =SUM(C54:H54) -> 4417 | J54: 42 | K54: 150.2 | L54: 3445.1 | M54: 34135.4 | N54: =SUM(J54:M54) -> 37772.7 | O54: 42189.7

Sheet 北信
A1: 第5表 地域振興局別・人工林天然林別・資源構成表
A3: 北信地域振興局(天然林) | O3: 単位 面積 : ha、蓄積 成長量 : ㎥
B4: 樹種 | C4: 針 葉 樹 | J4: 広 葉 樹 | O4: 計
C5: ス ギ | D5: ヒ ノ キ | E5: サ ワ ラ | F5: ア カ マ ツ | G5: カ ラ マ ツ | H5: そ の 他 針 | I5: 小 計 | J5: ク ヌ ギ | K5: ブ ナ | L5: ナ ラ | M5: そ の 他 広 | N5: 小 計
A6: 齢級
A7: 1 | B7: 面積 | I7: 0 | M7: 0.12 | N7: 0.12 | O7: =SUM(N7,I7) -> 0.12
B8: 蓄積 | I8: 0 | M8: 0 | N8: 0 | O8: 0
B9: 成長 | I9: 0 | M9: 0 | N9: 0 | O9: 0
A10: 2 | B10: 面積 | C10: 1.89 | I10: 1.89 | M10: 5.71 | N10: 5.71 | O10: 7.6
B11: 蓄積 | C11: 0 | I11: 0 | M11: 76 | N11: 76 | O11: 76
B12: 成長 | C12: 0 | I12: 0 | M12: 10.7 | N12: 10.7 | O12: 10.7
A13: 3 | B13: 面積 | F13: 0.09 | G13: 9.75 | I13: 9.84 | M13: 30.22 | N13: 30.22 | O13: 40.06
B14: 蓄積 | F14: 6 | G14: 508 | I14: 514 | M14: 749 | N14: 749 | O14: 1263
B15: 成長 | F15: 0.8 | G15: 50.8 | I15: 51.6 | M15: 65.5 | N15: 65.5 | O15: 117.1
A16: 4 | B16: 面積 | I16: 0 | L16: 1.12 | M16: 55.92 | N16: 57.04 | O16: 57.04
B17: 蓄積 | I17: 0 | L17: 35 | M17: 1790 | N17: 1825 | O17: 1825
B18: 成長 | I18: 0 | L18: 2.3 | M18: 121.2 | N18: 123.5 | O18: 123.5
A19: 5 | B19: 面積 | F19: 0.21 | I19: 0.21 | J19: 0.16 | K19: 2.15 | L19: 3.44 | M19: 93.11 | N19: 98.86 | O19: 99.07
B20: 蓄積 | F20: 26 | I20: 26 | J20: 10 | K20: 36 | L20: 152 | M20: 3274 | N20: 3472 | O20: 3498
B21: 成長 | F21: 1.4 | I21: 1.4 | J21: 0.3 | K21: 2.8 | L21: 8 | M21: 173.3 | N21: 184.4 | O21: 185.8
A22: 6 | B22: 面積 | F22: 0.76 | I22: 0.76 | J22: 0.21 | K22: 0.26 | L22: 4.89 | M22: 218.9 | N22: 224.26 | O22: 225.02
B23: 蓄積 | F23: 107 | I23: 107 | J23: 16 | K23: 10 | L23: 275 | M23: 11169 | N23: 11470 | O23: 11577
B24: 成長 | F24: 3.9 | I24: 3.9 | J24: 0.4 | K24: 0.7 | L24: 11.1 | M24: 454.8 | N24: 467 | O24: 470.9
A25: 7 | B25: 面積 | C25: 1.46 | F25: 0.5 | I25: 1.96 | J25: 0.39 | K25: 5.86 | L25: 16.5 | M25: 275.05 | N25: 297.8 | O25: 299.76
B26: 蓄積 | C26: 462 | F26: 83 | I26: 545 | J26: 31 | K26: 169 | L26: 1060 | M26: 16466 | N26: 17726 | O26: 18271
B27: 成長 | C27: 17.1 | F27: 2 | I27: 19.1 | J27: 0.4 | K27: 9.6 | L27: 33.1 | M27: 511.3 | N27: 554.4 | O27: 573.5
A28: 8 | B28: 面積 | F28: 0.77 | I28: 0.77 | J28: 3.24 | K28: 11.97 | L28: 44.38 | M28: 322.85 | N28: 382.44 | O28: 383.21
B29: 蓄積 | F29: 114 | I29: 114 | J29: 279 | K29: 651 | L29: 3165 | M29: 22469 | N29: 26564 | O29: 26678
B30: 成長 | F30: 2.2 | I30: 2.2 | J30: 3.1 | K30: 27.6 | L30: 94.7 | M30: 677.1 | N30: 802.5 | O30: 804.7
A31: 9 | B31: 面積 | C31: 0.17 | F31: 2.92 | I31: 3.09 | J31: 2.52 | K31: 3.02 | L31: 44.57 | M31: 418.52 | N31: 468.63 | O31: 471.72
B32: 蓄積 | C32: 61 | F32: 581 | I32: 642 | J32: 223 | K32: 216 | L32: 3607 | M32: 32731 | N32: 36777 | O32: 37419
B33: 成長 | C33: 1.4 | F33: 8.7 | I33: 10.1 | J33: 1.2 | K33: 7.7 | L33: 100.9 | M33: 910.9 | N33: 1020.7 | O33: 1030.8
A34: 10 | B34: 面積 | C34: 0.34 | F34: 5.74 | H34: 6.93 | I34: 13.01 | J34: 1.89 | K34: 56.22 | L34: 28.72 | M34: 389.43 | N34: 476.26 | O34: 489.27
B35: 蓄積 | C35: 155 | F35: 1209 | H35: 604 | I35: 1968 | J35: 169 | K35: 3112 | L35: 2615 | M35: 32059 | N35: 37955 | O35: 39923
B36: 成長 | C36: 2.6 | F36: 15.7 | H36: 16.9 | I36: 35.2 | J36: 0.3 | K36: 96 | L36: 67.4 | M36: 816.2 | N36: 979.9 | O36: 1015.1
A37: 11 | B37: 面積 | C37: 1.49 | F37: 23.66 | H37: 11.06 | I37: 36.21 | J37: 1.92 | K37: 71.54 | L37: 19.67 | M37: 2068.24 | N37: 2161.37 | O37: 2197.58
B38: 蓄積 | C38: 705 | F38: 4699 | H38: 486 | I38: 5890 | J38: 170 | K38: 4032 | L38: 2041 | M38: 139369 | N38: 145612 | O38: 151502
B39: 成長 | C39: 8.4 | F39: 52.5 | H39: 11.2 | I39: 72.1 | J39: 0 | K39: 108 | L39: 40.9 | M39: 2586.9 | N39: 2735.8 | O39: 2807.9
A40: 12 | B40: 面積 | C40: 0.03 | F40: 13.14 | G40: 0.71 | H40: 43.12 | I40: 57 | J40: 0.48 | K40: 143.8 | L40: 30.27 | M40: 1802.05 | N40: 1976.6 | O40: 2033.6
B41: 蓄積 | C41: 15 | F41: 3140 | G41: 206 | H41: 4428 | I41: 7789 | J41: 45 | K41: 13747 | L41: 3313 | M41: 151493 | N41: 168598 | O41: 176387
B42: 成長 | C42: 0.2 | F42: 28.6 | G42: 2.7 | H42: 84.1 | I42: 115.6 | J42: 0 | K42: 307.8 | L42: 61.9 | M42: 2682.5 | N42: 3052.2 | O42: 3167.8
A43: 13 | B43: 面積 | C43: 0.21 | F43: 41.85 | G43: 1.64 | H43: 152.86 | I43: 196.56 | J43: 5.56 | K43: 388.13 | L43: 58.02 | M43: 2837.78 | N43: 3289.49 | O43: 3486.05
B44: 蓄積 | C44: 108 | F44: 10024 | G44: 488 | H44: 19404 | I44: 30024 | J44: 515 | K44: 31341 | L44: 6868 | M44: 289607 | N44: 328331 | O44: 358355
B45: 成長 | C45: 1.1 | F45: 85.1 | G45: 6.3 | H45: 351.4 | I45: 443.9 | J45: 0 | K45: 711.7 | L45: 106.3 | M45: 4183 | N45: 5001 | O45: 5444.9
A46: 14 | B46: 面積 | C46: 0.74 | F46: 85.37 | G46: 0.26 | H46: 43.12 | I46: 129.49 | J46: 7.4 | K46: 255.65 | L46: 156.86 | M46: 3848.34 | N46: 4268.25 | O46: 4397.74
B47: 蓄積 | C47: 449 | F47: 21365 | G47: 81 | H47: 5062 | I47: 26957 | J47: 674 | K47: 28185 | L47: 19423 | M47: 428924 | N47: 477206 | O47: 504163
B48: 成長 | C48: 3.9 | F48: 147.1 | G48: 0.8 | H48: 81.5 | I48: 233.3 | J48: 0 | K48: 520.9 | L48: 199.1 | M48: 4612.1 | N48: 5332.1 | O48: 5565.4
A49: 15 以上 | B49: 面積 | C49: 0.2 | F49: 338.75 | G49: 0.33 | H49: 2108.23 | I49: 2447.51 | J49: 11.86 | K49: 2216.64 | L49: 365.33 | M49: 13546.54 | N49: 16140.37 | O49: 18587.88
B50: 蓄積 | C50: 112 | F50: 90637 | G50: 105 | H50: 399825 | I50: 490679 | J50: 1105 | K50: 299867 | L50: 44898 | M50: 1492256 | N50: 1838126 | O50: 2328805
B51: 成長 | C51: 0.6 | F51: 328.5 | G51: 0 | H51: 531.5 | I51: 860.6 | J51: 0 | K51: 1601.3 | L51: 113.6 | M51: 4952.1 | N51: 6667 | O51: 7527.6
A52: 計 | B52: 面積 | C52: =SUM(C7,C10,C13,C16,C19,C22,C25,C28,C31,C34,C37,C40,C43,C46,C49) -> 6.53 | D52: 0 | E52: 0 | F52: 513.76 | G52: 12.69 | H52: 2365.32 | I52: =SUM(C52:H52) -> 2898.3 | J52: =SUM(J7,J10,J13,J16,J19,J22,J25,J28,J31,J34,J37,J40,J43,J46,J49) -> 35.63 | K52: 3155.24 | L52: 773.77 | M52: 25912.78 | N52: =SUM(J52:M52) -> 29877.42 | O52: 32775.72
B53: 蓄積 | C53: 2067 | D53: 0 | E53: 0 | F53: 131991 | G53: 1388 | H53: 429809 | I53: =SUM(C53:H53) -> 565255 | J53: 3237 | K53: 381366 | L53: 87452 | M53: 2622432 | N53: =SUM(J53:M53) -> 3094487 | O53: 3659742
B54: 成長 | C54: 35.3 | D54: 0 | E54: 0 | F54: 676.5 | G54: 60.6 | H54: 1076.6 | I54: =SUM(C54:H54) -> 1849 | J54: 5.7 | K54: 3394.1 | L54: 839.3 | M54: 22757.6 | N54: =SUM(J54:M54) -> 26996.7 | O54: 28845.7
